Business Unit,Business Code,Service Code,Service Label,Organisational Unit,Expenditure,Invoice /Credit Note,Net Payments,Transaction No,Payment Date,Supplier ID,Supplier Name,Invoice No,Gross/Payment,Value 2,Status,Calc Gl Account,
North West Leicestershire District Council,31UH,HLC,Leisure Centres,Hermitage Leisure Centre,Service Contracts,Credit Note,-1117.71 ,1302779,,A035910,Chubb Electronic Security Ltd,5080696,"1,341.25",223.54,PST,5501-0718,0718
North West Leicestershire District Council,31UH,HLC,Leisure Centres,Hermitage Leisure Centre,Service Contracts,Invoice,1117.71 ,1302778,,A035910,Chubb Electronic Security Ltd,4972513,"1,341.25",223.54,PST,5501-0718,0718
North West Leicestershire District Council,31UH,NACN,Neighbourhoods & Communities,N & C Neighbourhoods,Sence Valley,Invoice,11007.50 ,1302767,04/03/2015,A021576,Ellistown And Battleflat Parish Council,SENCE VALLEY S106,"11,007.50",0.00,PD,0945-1704,1704
North West Leicestershire District Council,31UH,FINPLA,Finance,Financial Planning,Transport - Operating Leases,Invoice,520.00 ,1302766,04/03/2015,A030097,SG Equipment Finance Limited,L/011/15/02619,624.00,104.00,PD,5765-0581,0581
North West Leicestershire District Council,31UH,EXCH,Finance,Exchequer Services,Agency Staff,Invoice,16567.51 ,1302764,04/03/2015,A036958,Comensura Limited,545515,"19,881.09","3,313.58",PD,0370-0080,0080
North West Leicestershire District Council,31UH,ECCTV,Planning & Development,Environment - Town Centre/CCTV,Water Charges (Metered),Invoice,470.41 ,1302753,04/03/2015,A001468,Severn Trent Water Limited,1520257024,470.41,0.00,PD,0700-0370,0370
North West Leicestershire District Council,31UH,ECCTV,Planning & Development,Environment - Town Centre/CCTV,Electricity,Invoice,1432.04 ,1302751,04/03/2015,A030266,Southern Electric,561314161/0087,"1,718.44",286.40,PD,0700-0302,0302
North West Leicestershire District Council,31UH,ENOP,Street Management,Environment Parks,Water Charges (Metered),Invoice,340.73 ,1302750,04/03/2015,A001468,Severn Trent Water Limited,5440071604,340.73,0.00,PD,0478-0370,0370
North West Leicestershire District Council,31UH,ECCTV,Planning & Development,Environment - Town Centre/CCTV,Electricity,Invoice,319.20 ,1302748,04/03/2015,A035181,British Gas Business,601449889,383.04,63.84,PD,0125-0302,0302
North West Leicestershire District Council,31UH,ENOP,Street Management,Environment Parks,Electricity,Invoice,440.52 ,1302747,04/03/2015,A035181,British Gas Business,601446184,528.62,88.10,PD,0477-0302,0302
North West Leicestershire District Council,31UH,EEHL,Environmental Health,Environmental Health & Licensing,Grants,Invoice,2883.00 ,1302702,04/03/2015,A038469,Leicestershire County Council,DM/1916,"2,883.00",0.00,PD,6818-1553,1553
North West Leicestershire District Council,31UH,EES,Environmental Health,Environmental Services,External Contractor Payments,Invoice,266.85 ,1302788,04/03/2015,A000770,Hinckley & Bosworth Boroug,9000609278,320.22,53.37,PD,0370-0813,0813
North West Leicestershire District Council,31UH,HLC,Leisure Centres,Hermitage Leisure Centre,Service Contracts,Invoice,1117.71 ,1302811,11/03/2015,A034159,Chubb Fire Limted,4972513,"1,341.25",223.54,PD,5501-0718,0718
North West Leicestershire District Council,31UH,HLC,Leisure Centres,Hermitage Leisure Centre,Service Contracts,Credit Note,-1117.71 ,1302812,11/03/2015,A034159,Chubb Fire Limted,5080696,"1,341.25",223.54,PD,5501-0718,0718
North West Leicestershire District Council,31UH,HLC,Leisure Centres,Hermitage Leisure Centre,Service Contracts,Invoice,1117.71 ,1302813,,A035910,Chubb Electronic Security Ltd,5080696,"1,341.25",223.54,PST,5501-0718,0718
North West Leicestershire District Council,31UH,HLC,Leisure Centres,Hermitage Leisure Centre,Service Contracts,Credit Note,-1117.71 ,1302814,,A035910,Chubb Electronic Security Ltd,4972513,"1,341.25",223.54,PST,5501-0718,0718
North West Leicestershire District Council,31UH,EES,Environmental Health,Environmental Services,Grants,Invoice,489.62 ,1302852,04/03/2015,A038469,Leicestershire County Council,DM1943 10 ST IVES,489.62,0.00,PD,6818-1553,1553
North West Leicestershire District Council,31UH,HR,Corporate Director,Human Resources,Vehicle Leasing,Invoice,2554.24 ,1302914,04/03/2015,A035549,Arnold Clark Vehicle Management,L01134173,"2,822.40",268.16,PD,8018-6015,6015
North West Leicestershire District Council,31UH,HRAHM,Housing,HRA Housing Management,Agency Staff,Invoice,843.75 ,1302917,04/03/2015,A041893,Michael Page International Recruitment Ltd,5786576,"1,012.50",168.75,PD,1207-0080,0080
North West Leicestershire District Council,31UH,FINPLA,Finance,Financial Planning,Transport - Operating Leases,Invoice,15000.00 ,1302902,04/03/2015,A030097,SG Equipment Finance Limited,L/011/15/02889,"18,000.00","3,000.00",PD,5875-0581,0581
North West Leicestershire District Council,31UH,CS,Communications,Corporate - Customer Services,Operational Equipment,Invoice,4000.00 ,1302903,04/03/2015,A000079,Neopost Limited,TOP UP FRANKING M/C,"4,000.00",0.00,PD,0838-0710,0710
North West Leicestershire District Council,31UH,ENOT,Street Management,Environment Transport,Water Charges (Metered),Invoice,1049.59 ,1302907,04/03/2015,A001468,Severn Trent Water Limited,3290035520,"1,049.59",0.00,PD,0204-0370,0370
North West Leicestershire District Council,31UH,ENOWM,Street Management,Environment Waste Management,Trade Refuse Disposal Costs,Invoice,48283.61 ,1302910,04/03/2015,A000950,Leicestershire County Council,25720898,"57,940.33","9,656.72",PD,0382-0797,0797
North West Leicestershire District Council,31UH,FINPLA,Finance,Financial Planning,Transport - Operating Leases,Invoice,16900.00 ,1302911,04/03/2015,A030097,SG Equipment Finance Limited,L/011/15/02888,"20,280.00","3,380.00",PD,5890-0581,0581
North West Leicestershire District Council,31UH,EES,Environmental Health,Environmental Services,Grants,Invoice,4660.00 ,1302853,04/03/2015,A038469,Leicestershire County Council,DM1947 23 COVERDALE,"4,660.00",0.00,PD,6818-1553,1553
North West Leicestershire District Council,31UH,EXCH,Finance,Exchequer Services,Mobile Telephones,Invoice,7493.02 ,1303066,05/03/2015,A001861,Vodafone Limited,74814911,"8,991.62","1,498.60",PD,0830-0856,0856
North West Leicestershire District Council,31UH,EXCH,Finance,Exchequer Services,Gas,Invoice,5690.73 ,1303067,05/03/2015,A000958,ESPO,DD 27/2/2015,"6,478.04",787.31,PD,0390-0303,0303
North West Leicestershire District Council,31UH,EXCH,Finance,Exchequer Services,Gas,Invoice,19416.16 ,1303070,05/03/2015,A035709,Corona Energy Retail 4 Ltd,DIRECT DEBIT,"23,297.19","3,881.03",PD,5501-0303,0303
North West Leicestershire District Council,31UH,EXCH,Finance,Exchequer Services,Alarm System Telephones,Invoice,5019.54 ,1303071,05/03/2015,A000233,British Telecommunications P,VP13212270,"6,023.44","1,003.90",PD,5050-0864,0864
North West Leicestershire District Council,31UH,EXCH,Finance,Exchequer Services,Energy Efficiency Loans programme,Invoice,3980.06 ,1303077,05/03/2015,A038252,Salix Finance,01/03/2015 003033,"3,980.06",0.00,PD,9126-7702,7702
North West Leicestershire District Council,31UH,EXCH,Finance,Exchequer Services,Energy Efficiency Loans programme,Invoice,9090.50 ,1303078,05/03/2015,A038252,Salix Finance,01/03/2015 000794,"9,090.50",0.00,PD,9126-7702,7702
North West Leicestershire District Council,31UH,CULTYP,Leisure & Culture,Cultural Services Children & YoungPeople,Extended Services,Invoice,6390.00 ,1302990,11/03/2015,A039843,Women's Aid Leicestershire Ltd,705,"6,390.00",0.00,PD,0701-0914,0914
North West Leicestershire District Council,31UH,CULTYP,Leisure & Culture,Cultural Services Children & YoungPeople,Extended Services,Invoice,6390.00 ,1302991,11/03/2015,A039843,Women's Aid Leicestershire Ltd,704,"6,390.00",0.00,PD,0701-0914,0914
North West Leicestershire District Council,31UH,CULTYP,Leisure & Culture,Cultural Services Children & YoungPeople,Extended Services,Invoice,14000.00 ,1302993,11/03/2015,A040958,Baby Dolly,CC14-8-P,"14,000.00",0.00,PD,0701-0914,0914
North West Leicestershire District Council,31UH,EXCH,Finance,Exchequer Services,Other Miscellaneous Expenses,Invoice,2292.05 ,1303000,11/03/2015,A010859,Selima Limited,5099,"2,750.46",458.41,PD,1002-0949,0949
North West Leicestershire District Council,31UH,EXCH,Finance,Exchequer Services,Agency Staff,Invoice,18207.24 ,1303001,11/03/2015,A036958,Comensura Limited,545682,"21,848.69","3,641.45",PD,0290-0080,0080
North West Leicestershire District Council,31UH,NACCS,Neighbourhoods & Communities,N & C Community Safety,Safer North West Partnership Grant,Invoice,1000.00 ,1303012,11/03/2015,A000300,Castle Donington Parish Council,PARTNERSHIP GRANT,"1,000.00",0.00,PD,0935-5874,5874
North West Leicestershire District Council,31UH,CULTEV,Leisure & Culture,Cultural Services Arts & Events,Sence Valley,Invoice,2487.00 ,1302969,04/03/2015,A021576,Ellistown And Battleflat Parish Council,TREES ELLISTOWN,"2,487.00",0.00,PD,0945-1704,1704
North West Leicestershire District Council,31UH,EXCH,Finance,Exchequer Services,Vehicle Leasing,Invoice,6295.09 ,1302920,04/03/2015,A039405,Inchcape Fleet Solutions,1774712,"6,929.72",634.63,PD,8018-6015,6015
North West Leicestershire District Council,31UH,CULTHC,Leisure & Culture,Cultural Services Heritage,Recreation & Play Areas,Invoice,31995.00 ,1302970,04/03/2015,A000807,Ibstock Parish Council,S106-TEEN PLAY,"31,995.00",0.00,PD,0945-1706,1706
North West Leicestershire District Council,31UH,EEHL,Environmental Health,Environmental Health & Licensing,Grants,Invoice,3665.00 ,1303151,11/03/2015,A038469,Leicestershire County Council,DM/1297,"3,665.00",0.00,PD,6818-1553,1553
North West Leicestershire District Council,31UH,CULTHC,Leisure & Culture,Cultural Services Heritage,Recreation & Play Areas,Invoice,32984.30 ,1302971,04/03/2015,A000807,Ibstock Parish Council,S106-OPEN SPACE,"32,984.30",0.00,PD,0945-1706,1706
North West Leicestershire District Council,31UH,ICT,Information Technology,ICT Services,Photo Copier - Copy Charges Rental,Invoice,553.64 ,1303064,05/03/2015,A001301,The Danwood Group Ltd,3860402,664.37,110.73,PD,0837-0723,0723
North West Leicestershire District Council,31UH,PROPCL,Property Services,Property Commercial Lettings,General Repairs,Credit Note,-2700.00 ,1302975,11/03/2015,A030887,T Denman & Sons (Melton Mowbray) Ltd,CR112,"3,240.00",540.00,PD,0044-0100,0100
North West Leicestershire District Council,31UH,CULTYP,Leisure & Culture,Cultural Services Children & YoungPeople,Extended Services,Invoice,6150.00 ,1302985,11/03/2015,A041599,Community health and Learning Foundation Ltd (CIC),SINV000206,"6,150.00",0.00,PD,0701-0914,0914
North West Leicestershire District Council,31UH,CULTYP,Leisure & Culture,Cultural Services Children & YoungPeople,Extended Services,Invoice,1798.20 ,1302986,11/03/2015,A000780,Homestart (N.W. Leics),CC14/3-FF,"1,798.20",0.00,PD,0701-0914,0914
North West Leicestershire District Council,31UH,CULTYP,Leisure & Culture,Cultural Services Children & YoungPeople,Extended Services,Invoice,4548.00 ,1302987,11/03/2015,A000780,Homestart (N.W. Leics),LOT 2 EARLY COMM DEV,"4,548.00",0.00,PD,0701-0914,0914
North West Leicestershire District Council,31UH,CULTYP,Leisure & Culture,Cultural Services Children & YoungPeople,Extended Services,Invoice,9871.50 ,1302988,11/03/2015,A035950,Kimbles Music & Movement Ltd,KIMBLES1415548,"11,845.80","1,974.30",PD,0701-0914,0914
North West Leicestershire District Council,31UH,CULTYP,Leisure & Culture,Cultural Services Children & YoungPeople,Extended Services,Invoice,4185.00 ,1302989,11/03/2015,A035950,Kimbles Music & Movement Ltd,KIMBLES1415459,"5,022.00",837.00,PD,0701-0914,0914
North West Leicestershire District Council,31UH,CULTYP,Leisure & Culture,Cultural Services Children & YoungPeople,Extended Services,Invoice,1761.00 ,1303061,11/03/2015,A036038,TTS Group Ltd,DE3845377,"2,113.21",352.21,PD,0701-0914,0914
North West Leicestershire District Council,31UH,EXCH,Finance,Exchequer Services,Electricity,Invoice,7010.77 ,1303081,11/03/2015,A034733,British Gas Business,670045250,"7,667.15",656.38,PD,0037-0302,0302
North West Leicestershire District Council,31UH,LDLS,Legal & Democratic,Legal Services,External Legal Fees & Advice,Invoice,1275.50 ,1303232,11/03/2015,A041538,Shakespeares,427744,"1,530.60",255.10,PD,1301-1900,1900
North West Leicestershire District Council,31UH,NACN,Neighbourhoods & Communities,N & C Neighbourhoods,Grants,Invoice,64840.00 ,1303157,11/03/2015,A040635,South West Leicestershire Citizens Advic,PARTNERSHIP GRANT 14,"64,840.00",0.00,PD,0935-0900,0900
North West Leicestershire District Council,31UH,ICT,Information Technology,ICT Services,Telephone Charge / Rental,Invoice,5714.98 ,1303171,11/03/2015,A008908,Virgin Media Business,8.52501E+11,"6,857.97","1,142.99",PD,5513-0860,0860
North West Leicestershire District Council,31UH,ICT,Information Technology,ICT Services,Operational Equipment,Invoice,408.27 ,1303175,11/03/2015,A018592,Orange Plc,1171160372,489.92,81.65,PD,5030-0710,0710
North West Leicestershire District Council,31UH,ICT,Information Technology,ICT Services,Computing,Invoice,291.66 ,1303353,11/03/2015,A035373,Virgin Media Business,263636-098,349.99,58.33,PD,0204-0854,0854
North West Leicestershire District Council,31UH,HRAHRM,Housing Repairs,HRA Housing Repairs & Maintenance,Consultants Fees,Invoice,250.00 ,1303328,11/03/2015,A036053,Cope Safety Management Limited,35011,300.00,50.00,PD,6477-1536,1536
North West Leicestershire District Council,31UH,HRAHRM,Housing Repairs,HRA Housing Repairs & Maintenance,Consultants Fees,Invoice,375.00 ,1303329,11/03/2015,A036053,Cope Safety Management Limited,35012,450.00,75.00,PD,6477-1536,1536
North West Leicestershire District Council,31UH,CS,Communications,Corporate - Customer Services,Operational Equipment,Invoice,4000.00 ,1303256,11/03/2015,A000079,Neopost Limited,FRANKING MACHINE,"4,000.00",0.00,PD,0838-0710,0710
North West Leicestershire District Council,31UH,PROPFM,Property Services,Property Facilities Management,Electricity,Invoice,3830.97 ,1303325,11/03/2015,A030266,Southern Electric,811314793/0084,"4,597.16",766.19,PD,0210-0302,0302
North West Leicestershire District Council,31UH,HRAHRM,Housing Repairs,HRA Housing Repairs & Maintenance,Consultants Fees,Invoice,250.00 ,1303326,11/03/2015,A036053,Cope Safety Management Limited,35009,300.00,50.00,PD,6477-1536,1536
North West Leicestershire District Council,31UH,HRAHRM,Housing Repairs,HRA Housing Repairs & Maintenance,Consultants Fees,Invoice,375.00 ,1303327,11/03/2015,A036053,Cope Safety Management Limited,35010,450.00,75.00,PD,6477-1536,1536
North West Leicestershire District Council,31UH,PROPCL,Property Services,Property Commercial Lettings,Telephones,Invoice,575.14 ,1303334,11/03/2015,A000233,British Telecommunications P,01530 276100,690.16,115.02,PD,0044-0851,0851
North West Leicestershire District Council,31UH,HRAHM,Housing,HRA Housing Management,Contract Cleaning,Invoice,3096.91 ,1303335,11/03/2015,A000950,Leicestershire County Council,26004362,"3,716.29",619.38,PD,5005-0420,0420
North West Leicestershire District Council,31UH,HRAHM,Housing,HRA Housing Management,Contract Cleaning,Invoice,6452.11 ,1303336,11/03/2015,A000950,Leicestershire County Council,26004403,"7,742.53","1,290.42",PD,5030-0420,0420
North West Leicestershire District Council,31UH,CULTYP,Leisure & Culture,Cultural Services Children & YoungPeople,Extended Services,Invoice,7497.60 ,1303502,18/03/2015,A035295,Home-Start NWL,CC14/1-FF PARENT ENG,"7,497.60",0.00,PD,0701-0914,0914
North West Leicestershire District Council,31UH,CULTYP,Leisure & Culture,Cultural Services Children & YoungPeople,Extended Services,Invoice,7600.00 ,1303503,18/03/2015,A035295,Home-Start NWL,CC14/5-P HOME VISI,"7,600.00",0.00,PD,0701-0914,0914
North West Leicestershire District Council,31UH,CULTYP,Leisure & Culture,Cultural Services Children & YoungPeople,Extended Services,Invoice,4999.80 ,1303504,18/03/2015,A040628,Leicestershire CAB,533,"4,999.80",0.00,PD,0701-0914,0914
North West Leicestershire District Council,31UH,CULTYP,Leisure & Culture,Cultural Services Children & YoungPeople,Extended Services,Invoice,3074.00 ,1303505,18/03/2015,A011149,Lcc Warren Hills Community,WH000203,"3,074.00",0.00,PD,0701-0914,0914
North West Leicestershire District Council,31UH,HLC,Leisure Centres,Hermitage Leisure Centre,Electricity,Invoice,2460.25 ,1303513,18/03/2015,A030266,Southern Electric,41314786/0086,"2,952.30",492.05,PD,5501-0302,0302
North West Leicestershire District Council,31UH,HRAHRM,Housing Repairs,HRA Housing Repairs & Maintenance,General Materials,Invoice,67771.82 ,1303356,10/03/2015,A036453,Collective Enterprises Ltd,M201310797,"81,303.34","13,531.52",PD,5301-0729,0729
North West Leicestershire District Council,31UH,HRAHM,Housing,HRA Housing Management,Legal & Professional Services,Invoice,3440.00 ,1303357,10/03/2015,A033971,HMCS,8E+14,"3,440.00",0.00,PD,5030-0800,0800
North West Leicestershire District Council,31UH,ENOT,Street Management,Environment Transport,Licences - Road Fund Licence,Invoice,9055.00 ,1303480,18/03/2015,A008559,Post Office Limited,ROAD FUND RENEWALS,"9,055.00",0.00,PD,5678-0980,0980
North West Leicestershire District Council,31UH,EXCH,Finance,Exchequer Services,Agency Staff,Invoice,17073.74 ,1303481,18/03/2015,A036958,Comensura Limited,545870,"20,488.49","3,414.75",PD,0370-0080,0080
North West Leicestershire District Council,31UH,HRAHRM,Housing Repairs,HRA Housing Repairs & Maintenance,Decent Homes,Invoice,367870.62 ,1303495,18/03/2015,A039980,Kier Services Maintenance East Ltd,14090001,"441,444.74","73,574.12",PD,6484-1841,1841
North West Leicestershire District Council,31UH,HRAHRM,Housing Repairs,HRA Housing Repairs & Maintenance,Decent Homes,Invoice,745540.17 ,1303496,18/03/2015,A039973,Lovell Partnerships Ltd,E100131,"894,648.20","149,108.03",PD,6484-1841,1841
North West Leicestershire District Council,31UH,HRAHM,Housing,HRA Housing Management,Internal Decorations,Invoice,3008.28 ,1303681,18/03/2015,A000876,PPG Architectural Coatings Ltd,1800000738/2015,"3,609.94",601.66,PD,5016-3270,3270
North West Leicestershire District Council,31UH,CULTIC,Leisure & Culture,Cultural Services TIC,Theatre Tickets,Invoice,5733.90 ,1303683,18/03/2015,A021686,Ashby Dramatic Society,15ADS THE 39 STEPS,"5,733.90",0.00,PD,0067-1057,1057
North West Leicestershire District Council,31UH,SPA,Leisure & Culture,Sport & Physical Activity,Coach Education Grants,Invoice,747.50 ,1303684,18/03/2015,A030553,Sir John Moore Foundation,GRANT,747.50,0.00,PD,0695-5903,5903
North West Leicestershire District Council,31UH,MLC,Leisure Centres,Measham Leisure Centre,Supporting Futures- Street Games,Invoice,470.00 ,1303685,18/03/2015,A027454,Measham Leisure Centre,STREET GAMES MAR 15,470.00,0.00,PD,0690-1162,1162
North West Leicestershire District Council,31UH,HRAHRM,Housing Repairs,HRA Housing Repairs & Maintenance,General Materials,Invoice,65407.88 ,1303354,10/03/2015,A036453,Collective Enterprises Ltd,M201310797,"78,487.20","13,079.32",PD,5301-0729,0729
North West Leicestershire District Council,31UH,HRAHRM,Housing Repairs,HRA Housing Repairs & Maintenance,General Materials,Invoice,74869.91 ,1303355,10/03/2015,A036453,Collective Enterprises Ltd,M201310797,"89,837.95","14,968.04",PD,5301-0729,0729
North West Leicestershire District Council,31UH,HRAHRM,Housing Repairs,HRA Housing Repairs & Maintenance,Books & Publications,Invoice,581.20 ,1303553,18/03/2015,A032601,NICEIC Group PLC,90111954 PROFORMA,691.44,110.24,PD,1207-0782,0782
North West Leicestershire District Council,31UH,EES,Environmental Health,Environmental Services,Grants,Invoice,1812.50 ,1303689,18/03/2015,A027561,MJM Plumbing & Heating Services (Midland,LJ/DM1940,"1,812.50",0.00,PD,6818-1553,1553
North West Leicestershire District Council,31UH,ICT,Information Technology,ICT Services,Equipment Operating Leases,Invoice,4549.96 ,1303697,18/03/2015,A040459,Canon UK Ltd,770507201,"5,459.95",909.99,PD,0834-0716,0716
North West Leicestershire District Council,31UH,HRAHRM,Housing Repairs,HRA Housing Repairs & Maintenance,Agency Staff,Invoice,843.75 ,1303555,18/03/2015,A041893,Michael Page International Recruitment Ltd,5790219,"1,012.50",168.75,PD,1207-0080,0080
North West Leicestershire District Council,31UH,PROPFM,Property Services,Property Facilities Management,Health & Safety Repairs/Maintenance,Credit Note,-448.20 ,1303662,18/03/2015,A030887,T Denman & Sons (Melton Mowbray) Ltd,CR111,537.84,89.64,PD,0700-0113,0113
North West Leicestershire District Council,31UH,PROPCL,Property Services,Property Commercial Lettings,Alt & Mtce-Fixed Plant,Credit Note,-475.00 ,1303664,,A020453,Century Electronic Security,9763,570.00,95.00,PST,0044-0150,0150
North West Leicestershire District Council,31UH,ECCTV,Planning & Development,Environment - Town Centre/CCTV,Electricity,Invoice,1291.84 ,1303665,18/03/2015,A030266,Southern Electric,561314161/0088,"1,550.20",258.36,PD,0700-0302,0302
North West Leicestershire District Council,31UH,HRAHM,Housing,HRA Housing Management,Grants,Invoice,600.00 ,1303667,18/03/2015,A028377,Review Tenants & Residents Association,ONE OFF PAYMENT,600.00,0.00,PD,5085-0900,0900
North West Leicestershire District Council,31UH,HRAHM,Housing,HRA Housing Management,Grants,Invoice,600.00 ,1303668,18/03/2015,A007855,Willesley Tenants & Residents Association,ONE OFF PAYMENT,600.00,0.00,PD,5085-0900,0900
North West Leicestershire District Council,31UH,HRAHM,Housing,HRA Housing Management,Grants,Invoice,600.00 ,1303669,18/03/2015,A030997,Greenhill Tenants & Residents Association,ONE OFF PAYMENT,600.00,0.00,PD,5085-0900,0900
North West Leicestershire District Council,31UH,HRAHM,Housing,HRA Housing Management,Grants,Invoice,600.00 ,1303670,18/03/2015,A039705,FRIENDS OF WESTFIELDS,ONE OFF PAYMENT,600.00,0.00,PD,5085-0900,0900
North West Leicestershire District Council,31UH,EES,Environmental Health,Environmental Services,Grants,Invoice,4228.00 ,1303686,18/03/2015,A027781,J Rennocks & Son Ltd,LJ/DM/1880,"4,228.00",0.00,PD,6818-1553,1553
North West Leicestershire District Council,31UH,HRAHRM,Housing Repairs,HRA Housing Repairs & Maintenance,Subscriptions,Invoice,410.00 ,1303538,18/03/2015,A032601,NICEIC Group PLC,85387183,492.00,82.00,PD,1207-0901,0901
North West Leicestershire District Council,31UH,FINPLA,Finance,Financial Planning,Transport - Operating Leases,Invoice,273.48 ,1303539,18/03/2015,A033051,JCB Finance (Leasing) Ltd,55543,328.18,54.70,PD,5678-0581,0581
North West Leicestershire District Council,31UH,EXCH,Finance,Exchequer Services,Collection - Cash,Invoice,1075.54 ,1303540,18/03/2015,A004468,Kings Armoured Security Ser,97146,"1,290.64",215.10,PD,5501-0830,0830
North West Leicestershire District Council,31UH,NACCS,Neighbourhoods & Communities,N & C Community Safety,Grants,Invoice,250.00 ,1303795,18/03/2015,A042151,Coalville Adult Drama Group,C/V SPECIAL EXPENSES,250.00,0.00,PD,0473-0900,0900
North West Leicestershire District Council,31UH,EES,Environmental Health,Environmental Services,Grants,Invoice,9475.00 ,1303687,18/03/2015,A041584,ADN Construction Ltd,LJ/DM/1887,"9,475.00",0.00,PD,6818-1553,1553
North West Leicestershire District Council,31UH,EES,Environmental Health,Environmental Services,Grants,Invoice,4054.65 ,1303688,18/03/2015,A001092,John Merison BMC,LJ/DM/1930,"4,054.65",0.00,PD,6818-1553,1553
North West Leicestershire District Council,31UH,ECCTV,Planning & Development,Environment - Town Centre/CCTV,Water Charges (Metered),Invoice,423.44 ,1303700,18/03/2015,A001468,Severn Trent Water Limited,1520257024,423.44,0.00,PD,0700-0370,0370
North West Leicestershire District Council,31UH,LDLS,Legal & Democratic,Legal Services,External Legal Fees & Advice,Invoice,11489.47 ,1303704,18/03/2015,A042143,Buckles Solicitors,NWL2183/173,"11,489.47",0.00,PD,1301-1900,1900
North West Leicestershire District Council,31UH,ECCTV,Planning & Development,Environment - Town Centre/CCTV,Service Charges,Invoice,598.00 ,1303708,18/03/2015,A038748,Zurich Assurance Ltd,ZAP/1133207,717.60,119.60,PD,0125-0307,0307
North West Leicestershire District Council,31UH,ESS,Street Management,Environment - Street Scene,Tipping Charges,Invoice,272.10 ,1303710,18/03/2015,A001108,Sita UK Ltd,29638372,326.52,54.42,PD,0390-0818,0818
North West Leicestershire District Council,31UH,EXCH,Finance,Exchequer Services,Precept,Invoice,228975.00 ,1303805,18/03/2015,A028339,"Leicester, Leicestershire and Rutland Combined Fire Authority",10TH MARCH 2015,"228,975.00",0.00,PD,8542-8627,8627
North West Leicestershire District Council,31UH,EXCH,Finance,Exchequer Services,Green Footprints Exp,Invoice,1405.00 ,1303858,,A028298,Halfords,CANCEL CREDIT NOTES,"1,686.00",281.00,PST,0920-1027,1027
North West Leicestershire District Council,31UH,CULTIC,Leisure & Culture,Cultural Services TIC,Theatre Tickets,Invoice,276.20 ,1303864,25/03/2015,A017327,Roberts Coaches Limited,T109912,276.20,0.00,PD,0067-1057,1057
North West Leicestershire District Council,31UH,HLC,Leisure Centres,Hermitage Leisure Centre,Water Charges (Metered),Invoice,1639.14 ,1303888,25/03/2015,A001468,Severn Trent Water Limited,4060022567,"1,639.14",0.00,PD,5501-0370,0370
North West Leicestershire District Council,31UH,HRAHRM,Housing Repairs,HRA Housing Repairs & Maintenance,Cleaning & Domestic Equipment,Invoice,915.28 ,1303889,25/03/2015,A037013,Interserve (formerly Rentokil Initial UK,10790791,"1,098.32",183.04,PD,5030-0704,0704
North West Leicestershire District Council,31UH,FINPLA,Finance,Financial Planning,Transport - Operating Leases,Invoice,300.00 ,1303891,25/03/2015,A030097,SG Equipment Finance Limited,L/011/15/03608,360.00,60.00,PD,5667-0581,0581
North West Leicestershire District Council,31UH,FINPLA,Finance,Financial Planning,Transport - Operating Leases,Invoice,325.00 ,1303892,25/03/2015,A030097,SG Equipment Finance Limited,L/011/15/03607,390.00,65.00,PD,5698-0581,0581
North West Leicestershire District Council,31UH,FINPLA,Finance,Financial Planning,Transport - Operating Leases,Invoice,365.00 ,1303893,25/03/2015,A030097,SG Equipment Finance Limited,L/011/15/03606,438.00,73.00,PD,5660-0581,0581
North West Leicestershire District Council,31UH,FINPLA,Finance,Financial Planning,Transport - Operating Leases,Invoice,480.00 ,1303894,25/03/2015,A030097,SG Equipment Finance Limited,L/011/15/03609,576.00,96.00,PD,5761-0581,0581
North West Leicestershire District Council,31UH,LDLS,Legal & Democratic,Legal Services,Legal & Professional Services,Invoice,3213.50 ,1303900,25/03/2015,A031366,Bevan Brittan,1434056,"3,856.20",642.70,PD,0842-0800,0800
North West Leicestershire District Council,31UH,LDLS,Legal & Democratic,Legal Services,Legal & Professional Services,Invoice,6971.00 ,1303901,25/03/2015,A031366,Bevan Brittan,1430929,"8,365.20","1,394.20",PD,0842-0800,0800
North West Leicestershire District Council,31UH,FINPLA,Finance,Financial Planning,Affordable Housing,Invoice,55758.00 ,1303808,25/03/2015,A039302,EMH Homes,SLIN/00004684,"55,758.00",0.00,PD,0890-1710,1710
North West Leicestershire District Council,31UH,EXCH,Finance,Exchequer Services,Agency Staff,Invoice,14105.02 ,1303828,25/03/2015,A036958,Comensura Limited,546065,"16,926.00","2,820.98",PD,0290-0080,0080
North West Leicestershire District Council,31UH,LDLS,Legal & Democratic,Legal Services,Legal & Professional Services,Invoice,1039.50 ,1303833,25/03/2015,A031366,Bevan Brittan,1433709,"1,247.40",207.90,PD,1017-0800,0800
North West Leicestershire District Council,31UH,FINPLA,Finance,Financial Planning,Insurance,Invoice,360.00 ,1303782,18/03/2015,A001836,Zurich Insurance Company,QLA-10H0830083-70,360.00,0.00,PD,5103-1290,1290
North West Leicestershire District Council,31UH,FINPLA,Finance,Financial Planning,Books & Publications,Invoice,1948.75 ,1303787,18/03/2015,A036780,CIPFA Business Limited,3105653,"1,967.50",18.75,PD,1003-0782,0782
North West Leicestershire District Council,31UH,HS,Housing Strategy,Community - Housing Strategy,Other Services,Invoice,372.87 ,1303802,18/03/2015,A036451,Travelodge Hotels Ltd,C500165014,447.45,74.58,PD,0570-0803,0803
North West Leicestershire District Council,31UH,EXCH,Finance,Exchequer Services,County Precept,Invoice,3161570.00 ,1303803,18/03/2015,A000950,Leicestershire County Council,10TH MARCH 2015,"3,161,570.00",0.00,PD,8542-8626,8626
North West Leicestershire District Council,31UH,EXCH,Finance,Exchequer Services,Precept,Invoice,524721.60 ,1303804,18/03/2015,A007096,The OPCC for Leicestershire,10TH MARCH 2015,"524,721.60",0.00,PD,8542-8637,8637
North West Leicestershire District Council,31UH,ECP,Planning & Development,Environment Community Planning,External Legal Fees & Advice,Invoice,493.43 ,1304356,25/03/2015,A034291,Valuation Office Agency,2.50001E+13,592.12,98.69,PD,1301-1900,1900
North West Leicestershire District Council,31UH,ECP,Planning & Development,Environment Community Planning,LCC Payments,Invoice,3307.77 ,1304357,25/03/2015,A032695,Lichfield District Council,M0007369566,"3,969.32",661.55,PD,0945-1702,1702
North West Leicestershire District Council,31UH,LCM,Leisure & Culture,Leisure & Cult Mangt,Grants,Invoice,500.00 ,1304358,25/03/2015,A036337,Coalville Town Twinning Assn,PARTNERSHIP GRANT,500.00,0.00,PD,0473-0900,0900
North West Leicestershire District Council,31UH,LCM,Leisure & Culture,Leisure & Cult Mangt,Swimming Pool Grant,Invoice,7500.00 ,1304359,25/03/2015,A029866,LCC Ibstock Community College,Q3 & Q4 SWIM POOL GR,"7,500.00",0.00,PD,0620-0906,0906
North West Leicestershire District Council,31UH,HRAHRM,Housing Repairs,HRA Housing Repairs & Maintenance,Hire Of Operational Equipment,Invoice,350.00 ,1304290,25/03/2015,A038405,Emperor Scaffolding Limited,10312,420.00,70.00,PD,5301-0733,0733
North West Leicestershire District Council,31UH,HRAHRM,Housing Repairs,HRA Housing Repairs & Maintenance,Hire Of Operational Equipment,Invoice,300.00 ,1304291,25/03/2015,A038405,Emperor Scaffolding Limited,10311,360.00,60.00,PD,5301-0733,0733
North West Leicestershire District Council,31UH,HRAHRM,Housing Repairs,HRA Housing Repairs & Maintenance,Hire Of Operational Equipment,Invoice,375.00 ,1304292,25/03/2015,A038405,Emperor Scaffolding Limited,10315,450.00,75.00,PD,5301-0733,0733
North West Leicestershire District Council,31UH,HRAHRM,Housing Repairs,HRA Housing Repairs & Maintenance,Hire Of Operational Equipment,Invoice,350.00 ,1304293,25/03/2015,A038405,Emperor Scaffolding Limited,10316,420.00,70.00,PD,5301-0733,0733
North West Leicestershire District Council,31UH,HRAHRM,Housing Repairs,HRA Housing Repairs & Maintenance,Hire Of Operational Equipment,Invoice,350.00 ,1304294,25/03/2015,A038405,Emperor Scaffolding Limited,10314,420.00,70.00,PD,5301-0733,0733
North West Leicestershire District Council,31UH,EES,Environmental Health,Environmental Services,Grants,Invoice,2844.74 ,1304295,25/03/2015,A038469,Leicestershire County Council,DM1941 5 GILLAMORE D,"2,844.74",0.00,PD,6818-1553,1553
North West Leicestershire District Council,31UH,EES,Environmental Health,Environmental Services,Grants,Invoice,2193.67 ,1304296,25/03/2015,A001092,John Merison BMC,DM1924,"2,193.67",0.00,PD,6818-1553,1553
North West Leicestershire District Council,31UH,LDLS,Legal & Democratic,Legal Services,Legal Costs,Invoice,280.00 ,1304298,25/03/2015,A033948,HMCTS,NWL2149/37,280.00,0.00,PD,0570-0803,0803
North West Leicestershire District Council,31UH,HPLC,Leisure Centres,Hood Park Leisure Centre,Telephone Charge / Rental,Invoice,661.85 ,1304300,25/03/2015,A035373,Virgin Media Business,908060-074,794.22,132.37,PD,5513-0860,0860
North West Leicestershire District Council,31UH,HPLC,Leisure Centres,Hood Park Leisure Centre,Water Charges (Metered),Invoice,1078.21 ,1304301,25/03/2015,A001468,Severn Trent Water Limited,5920022231,"1,078.21",0.00,PD,5513-0370,0370
North West Leicestershire District Council,31UH,HPLC,Leisure Centres,Hood Park Leisure Centre,Electricity,Invoice,970.38 ,1304302,25/03/2015,A030266,Southern Electric,701485672/0040,"1,164.45",194.07,PD,5513-0302,0302
North West Leicestershire District Council,31UH,CULTYP,Leisure & Culture,Cultural Services Children & YoungPeople,Extended Services,Invoice,833.33 ,1304303,25/03/2015,A039092,The Mighty Creatives,481,833.33,0.00,PD,0701-0914,0914
North West Leicestershire District Council,31UH,CULTYP,Leisure & Culture,Cultural Services Children & YoungPeople,Extended Services,Invoice,833.34 ,1304304,25/03/2015,A039092,The Mighty Creatives,482,833.34,0.00,PD,0701-0914,0914
North West Leicestershire District Council,31UH,HRAHRM,Housing Repairs,HRA Housing Repairs & Maintenance,Tipping Charges,Invoice,1060.80 ,1304309,25/03/2015,A035471,Ward Recycling,WS1301689,"1,272.96",212.16,PD,5301-0818,0818
North West Leicestershire District Council,31UH,FINPLA,Finance,Financial Planning,Equipment Operating Leases,Invoice,521.00 ,1304460,25/03/2015,A034516,Asset Advantage Group Limited,AG/15/455716,625.20,104.20,PD,5513-0716,0716
North West Leicestershire District Council,31UH,EES,Environmental Health,Environmental Services,Hire Of Operational Equipment,Invoice,780.00 ,1304461,25/03/2015,A026192,DLNR CRC Ltd,150,936.00,156.00,PD,0280-0733,0733
North West Leicestershire District Council,31UH,HRAHRM,Housing Repairs,HRA Housing Repairs & Maintenance,Agency Staff,Invoice,900.00 ,1304478,31/03/2015,A041893,Michael Page International Recruitment Ltd,5797307,"1,080.00",180.00,PD,1207-0080,0080
North West Leicestershire District Council,31UH,LCM,Leisure & Culture,Leisure & Cult Mangt,Community Initiatives,Invoice,5000.00 ,1304492,31/03/2015,A042165,Castle Donington Bowls Club,SEVEN GRANT,"5,000.00",0.00,PD,0935-5924,5924
North West Leicestershire District Council,31UH,HRAPBS,Housing,HRA Performance & Business Support,Community Initiatives,Invoice,450.00 ,1304493,31/03/2015,A032259,Llynda J Baugh,PAYMENT BY BACS,450.00,0.00,PD,5085-5924,5924
North West Leicestershire District Council,31UH,FINPLA,Finance,Financial Planning,Pension- Added years/Capital Costs,Invoice,5591.13 ,1304494,31/03/2015,A028310,Leicestershire County Council Pension Fu,P0375,"5,591.13",0.00,PD,0821-0060,0060
North West Leicestershire District Council,31UH,CS,Communications,Corporate - Customer Services,Postages,Invoice,3000.00 ,1304368,25/03/2015,A000079,Neopost Limited,FRANKING MACHINE,"3,000.00",0.00,PD,0838-0850,0850
North West Leicestershire District Council,31UH,LCM,Leisure & Culture,Leisure & Cult Mangt,Grants,Invoice,500.00 ,1304374,25/03/2015,A042162,Deana Wildgoose,SMALL GRANT SCHEME,500.00,0.00,PD,0703-0900,0900
North West Leicestershire District Council,31UH,CULTIC,Leisure & Culture,Cultural Services TIC,Theatre Tickets,Invoice,261.25 ,1304385,25/03/2015,A042157,Haunted heritage Paranormal Events,TICKET SALES,261.25,0.00,PD,0067-1057,1057
North West Leicestershire District Council,31UH,HRAHRM,Housing Repairs,HRA Housing Repairs & Maintenance,Consultants Fees,Invoice,10627.38 ,1304438,25/03/2015,A039973,Lovell Partnerships Ltd,E100136,"12,752.86","2,125.48",PD,6477-1536,1536
North West Leicestershire District Council,31UH,EES,Environmental Health,Environmental Services,Stray Dog Service,Invoice,1632.14 ,1304442,25/03/2015,A000385,College Garth Boarding Kenn,619,"1,980.57",348.43,PD,0348-0957,0957
North West Leicestershire District Council,31UH,HRAHRM,Housing Repairs,HRA Housing Repairs & Maintenance,Decent Homes,Credit Note,-3375.89 ,1304450,25/03/2015,A039973,Lovell Partnerships Ltd,CM005,"4,051.07",675.18,PD,6488-1743,1743
North West Leicestershire District Council,31UH,ENOWM,Street Management,Environment Waste Management,External Contractor Payments,Invoice,291.56 ,1304451,25/03/2015,A000770,Hinckley & Bosworth Boroug,9000615110,349.87,58.31,PD,0370-0813,0813
North West Leicestershire District Council,31UH,CULTIC,Leisure & Culture,Cultural Services TIC,Theatre Tickets,Invoice,252.00 ,1304455,25/03/2015,A027431,Ashby Dramatic Society,JB JAZZ & BLUES,252.00,0.00,PD,0067-1057,1057
North West Leicestershire District Council,31UH,CULTIC,Leisure & Culture,Cultural Services TIC,Theatre Tickets,Invoice,664.85 ,1304456,25/03/2015,A017327,Roberts Coaches Limited,T109959,664.85,0.00,PD,0067-1057,1057
North West Leicestershire District Council,31UH,EXCH,Finance,Exchequer Services,Agency Staff,Invoice,13743.68 ,1304528,31/03/2015,A036958,Comensura Limited,546267,"16,492.44","2,748.76",PD,0290-0080,0080
North West Leicestershire District Council,31UH,ICT,Information Technology,ICT Services,Admin Equipment - Maintenance,Invoice,419.87 ,1304510,31/03/2015,A008908,Virgin Media Business,8.52179E+11,503.85,83.98,PD,1011-0696,0696
North West Leicestershire District Council,31UH,ICT,Information Technology,ICT Services,Admin Equipment - Hire/Rental,Invoice,1187.88 ,1304511,31/03/2015,A000233,British Telecommunications P,25009170AC01,"1,425.46",237.58,PD,1011-0697,0697
North West Leicestershire District Council,31UH,CS,Communications,Corporate - Customer Services,Postages,Invoice,2000.00 ,1304612,31/03/2015,A000079,Neopost Limited,81748932,"2,000.00",0.00,PD,0835-0850,0850
North West Leicestershire District Council,31UH,EES,Environmental Health,Environmental Services,Grants,Invoice,370.80 ,1304614,31/03/2015,A027781,J Rennocks & Son Ltd,DM1880,370.80,0.00,PD,6818-1553,1553
North West Leicestershire District Council,31UH,EES,Environmental Health,Environmental Services,Grants,Invoice,320.00 ,1304615,31/03/2015,A038386,David Kirton Designs,DM1895,320.00,0.00,PD,6818-1553,1553
North West Leicestershire District Council,31UH,EES,Environmental Health,Environmental Services,Grants,Invoice,3718.83 ,1304616,31/03/2015,A038668,Adaptions,DM1914,"3,718.83",0.00,PD,6818-1553,1553
North West Leicestershire District Council,31UH,EES,Environmental Health,Environmental Services,Grants,Invoice,3225.00 ,1304617,31/03/2015,A027561,MJM Plumbing & Heating Services (Midland,DM1947,"3,225.00",0.00,PD,6818-1553,1553
North West Leicestershire District Council,31UH,HRAHM,Housing,HRA Housing Management,Grants,Invoice,600.00 ,1304572,31/03/2015,A042170,Tenants and Residents Association,BACS PAYMENT,600.00,0.00,PD,5085-0900,0900
North West Leicestershire District Council,31UH,HR,Corporate Director,Human Resources,Employee Advertising,Invoice,531.01 ,1304657,31/03/2015,A001395,Euro RSCG People T/A Havas People Ltd,564966,637.11,106.10,PD,0290-0043,0043
North West Leicestershire District Council,31UH,HR,Corporate Director,Human Resources,Employee Advertising,Invoice,1676.66 ,1304658,31/03/2015,A001395,Euro RSCG People T/A Havas People Ltd,564765,"2,011.66",335.00,PD,0290-0043,0043
North West Leicestershire District Council,31UH,EXCH,Finance,Exchequer Services,Gas,Invoice,17060.10 ,1304949,31/03/2015,A035709,Corona Energy Retail 4 Ltd,DREICT DEBIT31/03/15,"20,453.50","3,393.40",PD,5501-0303,0303
North West Leicestershire District Council,31UH,HRAHM,Housing,HRA Housing Management,Gas,Invoice,1723.11 ,1304950,31/03/2015,A000958,ESPO,DIRECT DEBIT31/03/15,"2,218.43",495.32,PD,0390-0303,0303
North West Leicestershire District Council,31UH,LDLS,Legal & Democratic,Legal Services,External Legal Fees & Advice,Invoice,3500.00 ,1304622,31/03/2015,A041538,Shakespeares,427707,"4,200.00",700.00,PD,1301-1900,1900
North West Leicestershire District Council,31UH,ECCTV,Planning & Development,Environment - Town Centre/CCTV,Electricity,Credit Note,-370.31 ,1304634,,A034733,British Gas Business,601449889,444.37,74.06,PST,0125-0302,0302
North West Leicestershire District Council,31UH,HR,Corporate Director,Human Resources,Employee Advertising,Invoice,1776.73 ,1304666,31/03/2015,A001395,Euro RSCG People T/A Havas People Ltd,564470,"2,131.73",355.00,PD,0290-0043,0043
North West Leicestershire District Council,31UH,EES,Environmental Health,Environmental Services,Grants,Invoice,3770.24 ,1304947,31/03/2015,A038668,Adaptions,DM1921,"3,770.24",0.00,PD,6818-1553,1553
North West Leicestershire District Council,31UH,EXCH,Finance,Exchequer Services,Training Expenses,Invoice,351.50 ,1304659,31/03/2015,A029304,Unicorn Training Limited,SIN001814,421.80,70.30,PD,1028-0042,0042
North West Leicestershire District Council,31UH,ECCTV,Planning & Development,Environment - Town Centre/CCTV,Electricity,Credit Note,-469.33 ,1304648,,A034733,British Gas Business,601449889,563.19,93.86,PST,0125-0302,0302
North West Leicestershire District Council,31UH,HRAHM,Housing,HRA Housing Management,Electricity,Invoice,703.71 ,1304690,31/03/2015,A000528,E.on,12698519170,738.90,35.19,PD,5030-0302,0302
North West Leicestershire District Council,31UH,HRAHRM,Housing Repairs,HRA Housing Repairs & Maintenance,General Materials,Invoice,41502.37 ,1304959,31/03/2015,A036453,Collective Enterprises Ltd,M201310797,"49,801.01","8,298.64",PD,5301-0729,0729
North West Leicestershire District Council,31UH,ECCTV,Planning & Development,Environment - Town Centre/CCTV,Electricity,Credit Note,-447.41 ,1304635,,A034733,British Gas Business,601449889,536.89,89.48,PST,0125-0302,0302
North West Leicestershire District Council,31UH,ECCTV,Planning & Development,Environment - Town Centre/CCTV,Electricity,Credit Note,-375.90 ,1304636,,A034733,British Gas Business,601449889,451.08,75.18,PST,0125-0302,0302
North West Leicestershire District Council,31UH,ECCTV,Planning & Development,Environment - Town Centre/CCTV,Electricity,Credit Note,-415.87 ,1304637,,A035745,British Gas Business,601449889,499.04,83.17,PST,0125-0302,0302
North West Leicestershire District Council,31UH,ECCTV,Planning & Development,Environment - Town Centre/CCTV,Electricity,Credit Note,-446.85 ,1304638,,A034733,British Gas Business,601449889,536.22,89.37,PST,0125-0302,0302
North West Leicestershire District Council,31UH,ECCTV,Planning & Development,Environment - Town Centre/CCTV,Electricity,Credit Note,-811.30 ,1304639,,A035745,British Gas Business,601449889,973.56,162.26,PST,0125-0302,0302
North West Leicestershire District Council,31UH,ECCTV,Planning & Development,Environment - Town Centre/CCTV,Electricity,Credit Note,-486.10 ,1304640,,A035745,British Gas Business,601449889,583.32,97.22,PST,0125-0302,0302
North West Leicestershire District Council,31UH,ECCTV,Planning & Development,Environment - Town Centre/CCTV,Electricity,Credit Note,-459.56 ,1304641,,A034733,British Gas Business,601449889,551.47,91.91,PST,0125-0302,0302
North West Leicestershire District Council,31UH,ECCTV,Planning & Development,Environment - Town Centre/CCTV,Electricity,Credit Note,-380.22 ,1304642,,A035745,British Gas Business,601449889,456.26,76.04,PST,0125-0302,0302
North West Leicestershire District Council,31UH,ECCTV,Planning & Development,Environment - Town Centre/CCTV,Electricity,Credit Note,-393.53 ,1304643,,A035745,British Gas Business,601449889,472.23,78.70,PST,0125-0302,0302
North West Leicestershire District Council,31UH,ECCTV,Planning & Development,Environment - Town Centre/CCTV,Electricity,Credit Note,-319.20 ,1304644,,A035181,British Gas Business,601449889,383.04,63.84,PST,0125-0302,0302
North West Leicestershire District Council,31UH,ECCTV,Planning & Development,Environment - Town Centre/CCTV,Electricity,Credit Note,-580.59 ,1304645,,A035181,British Gas Business,601449889,696.70,116.11,PST,0125-0302,0302
North West Leicestershire District Council,31UH,HRAHRM,Housing Repairs,HRA Housing Repairs & Maintenance,Property Surveys,Invoice,500.00 ,1302805,04/03/2015,A008757,Ksa Consulting Engineers Ltd,5815,600.00,100.00,PD,6457-1287,1287
North West Leicestershire District Council,31UH,HRAHRM,Housing Repairs,HRA Housing Repairs & Maintenance,Property Surveys,Invoice,300.00 ,1302806,04/03/2015,A008757,Ksa Consulting Engineers Ltd,5821,360.00,60.00,PD,5103-1285,1285
North West Leicestershire District Council,31UH,HRAHRM,Housing Repairs,HRA Housing Repairs & Maintenance,Door Entry Systems,Invoice,260.00 ,1302807,04/03/2015,A023130,Geze Uk Limited,88187975,312.00,52.00,PD,5103-1291,1291
North West Leicestershire District Council,31UH,HRAHRM,Housing Repairs,HRA Housing Repairs & Maintenance,Solid Fuel Supplies,Invoice,1480.00 ,1302808,04/03/2015,A035675,Elite Sweep Service,1181,"1,776.00",296.00,PD,5103-1282,1282
North West Leicestershire District Council,31UH,HRAHRM,Housing Repairs,HRA Housing Repairs & Maintenance,Housing Repairs,Invoice,372.81 ,1303287,11/03/2015,A031787,Laker BMS Ltd,IN00037515,447.37,74.56,PD,5005-1285,1285
North West Leicestershire District Council,31UH,HRAHRM,Housing Repairs,HRA Housing Repairs & Maintenance,Housing Repairs,Invoice,444.61 ,1303288,11/03/2015,A031787,Laker BMS Ltd,IN00037516,533.53,88.92,PD,5005-1285,1285
North West Leicestershire District Council,31UH,HRAHRM,Housing Repairs,HRA Housing Repairs & Maintenance,Housing Repairs,Invoice,507.44 ,1303286,11/03/2015,A031787,Laker BMS Ltd,IN00037514,608.93,101.49,PD,5005-1285,1285
North West Leicestershire District Council,31UH,HRAHRM,Housing Repairs,HRA Housing Repairs & Maintenance,Housing Repairs,Invoice,897.00 ,1303285,11/03/2015,A031787,Laker BMS Ltd,IN00037510,"1,076.40",179.40,PD,5103-1283,1283
North West Leicestershire District Council,31UH,HRAHRM,Housing Repairs,HRA Housing Repairs & Maintenance,Housing Repairs,Invoice,1993.23 ,1303284,11/03/2015,A031787,Laker BMS Ltd,IN00037509,"2,391.88",398.65,PD,5103-1283,1283
North West Leicestershire District Council,31UH,HRAHRM,Housing Repairs,HRA Housing Repairs & Maintenance,Housing Repairs,Invoice,752.00 ,1303280,11/03/2015,A031787,Laker BMS Ltd,IN00035925,902.40,150.40,PD,5103-1281,1281
North West Leicestershire District Council,31UH,HRAHRM,Housing Repairs,HRA Housing Repairs & Maintenance,Decent Homes,Invoice,2892.92 ,1303279,11/03/2015,A039973,Lovell Partnerships Ltd,E100106/9,"3,471.50",578.58,PD,6447-1281,1281
North West Leicestershire District Council,31UH,HRAHRM,Housing Repairs,HRA Housing Repairs & Maintenance,Housing Repairs,Invoice,2600.00 ,1303296,11/03/2015,A031787,Laker BMS Ltd,IN00037828,"3,120.00",520.00,PD,6447-1293,1293
North West Leicestershire District Council,31UH,HRAHRM,Housing Repairs,HRA Housing Repairs & Maintenance,Housing Repairs,Invoice,2711.13 ,1303299,11/03/2015,A031787,Laker BMS Ltd,IN00038182,"3,253.36",542.23,PD,5103-1286,1286
North West Leicestershire District Council,31UH,HRAHRM,Housing Repairs,HRA Housing Repairs & Maintenance,Decent Homes,Invoice,2892.92 ,1303278,11/03/2015,A039973,Lovell Partnerships Ltd,E100106/8,"3,471.50",578.58,PD,6447-1281,1281
North West Leicestershire District Council,31UH,HRAHRM,Housing Repairs,HRA Housing Repairs & Maintenance,Decent Homes,Invoice,2892.92 ,1303277,11/03/2015,A039973,Lovell Partnerships Ltd,E100106/7,"3,471.50",578.58,PD,6447-1281,1281
North West Leicestershire District Council,31UH,HRAHRM,Housing Repairs,HRA Housing Repairs & Maintenance,Decent Homes,Invoice,2434.83 ,1303276,11/03/2015,A039973,Lovell Partnerships Ltd,E100106/6,"2,921.80",486.97,PD,6447-1286,1286
North West Leicestershire District Council,31UH,HRAHRM,Housing Repairs,HRA Housing Repairs & Maintenance,Decent Homes,Invoice,2892.92 ,1303275,11/03/2015,A039973,Lovell Partnerships Ltd,E100106/5,"3,471.50",578.58,PD,6447-1283,1283
North West Leicestershire District Council,31UH,HRAHRM,Housing Repairs,HRA Housing Repairs & Maintenance,Decent Homes,Invoice,2434.83 ,1303274,11/03/2015,A039973,Lovell Partnerships Ltd,E100106/4,"2,921.80",486.97,PD,6447-1292,1292
North West Leicestershire District Council,31UH,HRAHRM,Housing Repairs,HRA Housing Repairs & Maintenance,Decent Homes,Invoice,1566.41 ,1303273,11/03/2015,A039973,Lovell Partnerships Ltd,E100106/3,"1,879.69",313.28,PD,6447-1285,1285
North West Leicestershire District Council,31UH,HRAHRM,Housing Repairs,HRA Housing Repairs & Maintenance,Decent Homes,Invoice,2892.92 ,1303272,11/03/2015,A039973,Lovell Partnerships Ltd,E100106/2,"3,471.50",578.58,PD,6447-1283,1283
North West Leicestershire District Council,31UH,HRAHRM,Housing Repairs,HRA Housing Repairs & Maintenance,Decent Homes,Invoice,2185.65 ,1303271,11/03/2015,A039973,Lovell Partnerships Ltd,E100106/17,"2,622.81",437.16,PD,6447-1283,1283
North West Leicestershire District Council,31UH,HRAHRM,Housing Repairs,HRA Housing Repairs & Maintenance,Decent Homes,Invoice,2185.65 ,1303270,11/03/2015,A039973,Lovell Partnerships Ltd,E100106/16,"2,622.78",437.13,PD,6447-1283,1283
North West Leicestershire District Council,31UH,HRAHRM,Housing Repairs,HRA Housing Repairs & Maintenance,Decent Homes,Invoice,2892.92 ,1303269,11/03/2015,A039973,Lovell Partnerships Ltd,E100106/15,"3,471.50",578.58,PD,6447-1281,1281
North West Leicestershire District Council,31UH,HRAHRM,Housing Repairs,HRA Housing Repairs & Maintenance,Decent Homes,Invoice,2663.87 ,1303268,11/03/2015,A039973,Lovell Partnerships Ltd,E100106/14,"3,196.64",532.77,PD,6447-1283,1283
North West Leicestershire District Council,31UH,HRAHRM,Housing Repairs,HRA Housing Repairs & Maintenance,Decent Homes,Invoice,2434.83 ,1303267,11/03/2015,A039973,Lovell Partnerships Ltd,E100106/13,"2,921.80",486.97,PD,6447-1291,1291
North West Leicestershire District Council,31UH,HRAHRM,Housing Repairs,HRA Housing Repairs & Maintenance,Decent Homes,Invoice,2892.92 ,1303266,11/03/2015,A039973,Lovell Partnerships Ltd,E100106/12,"3,471.50",578.58,PD,6458-1285,1285
North West Leicestershire District Council,31UH,HRAHRM,Housing Repairs,HRA Housing Repairs & Maintenance,Decent Homes,Invoice,2892.92 ,1303265,11/03/2015,A039973,Lovell Partnerships Ltd,E100106/11,"3,471.50",578.58,PD,6447-1284,1284
North West Leicestershire District Council,31UH,HRAHRM,Housing Repairs,HRA Housing Repairs & Maintenance,Decent Homes,Invoice,2892.92 ,1303264,11/03/2015,A039973,Lovell Partnerships Ltd,E100106/10,"3,471.50",578.58,PD,6447-1283,1283
North West Leicestershire District Council,31UH,HRAHRM,Housing Repairs,HRA Housing Repairs & Maintenance,Decent Homes,Invoice,2434.83 ,1303263,11/03/2015,A039973,Lovell Partnerships Ltd,E100106/1,"2,921.80",486.97,PD,6447-1289,1289
North West Leicestershire District Council,31UH,HRAHRM,Housing Repairs,HRA Housing Repairs & Maintenance,Asbestos Survey and Removal,Invoice,731.00 ,1303304,11/03/2015,A041868,Aspect Contracts Limited,BM4719I,877.20,146.20,PD,6495-1510,1510
North West Leicestershire District Council,31UH,HRAHRM,Housing Repairs,HRA Housing Repairs & Maintenance,Asbestos Survey and Removal,Invoice,663.00 ,1303306,11/03/2015,A041868,Aspect Contracts Limited,BM4738I,795.60,132.60,PD,6495-1510,1510
North West Leicestershire District Council,31UH,HRAHRM,Housing Repairs,HRA Housing Repairs & Maintenance,Asbestos Survey and Removal,Invoice,765.00 ,1303307,11/03/2015,A041868,Aspect Contracts Limited,BM4739I,918.00,153.00,PD,6495-1510,1510
North West Leicestershire District Council,31UH,HRAHRM,Housing Repairs,HRA Housing Repairs & Maintenance,Asbestos Survey and Removal,Invoice,610.00 ,1303308,11/03/2015,A041868,Aspect Contracts Limited,BM4740I,732.00,122.00,PD,5005-1282,1282
North West Leicestershire District Council,31UH,HRAHRM,Housing Repairs,HRA Housing Repairs & Maintenance,Asbestos Survey and Removal,Invoice,765.00 ,1303309,11/03/2015,A041868,Aspect Contracts Limited,BM4741I,918.00,153.00,PD,6495-1510,1510
North West Leicestershire District Council,31UH,HRAHRM,Housing Repairs,HRA Housing Repairs & Maintenance,Asbestos Survey and Removal,Invoice,527.00 ,1303310,11/03/2015,A041868,Aspect Contracts Limited,BM4742I,632.40,105.40,PD,6495-1510,1510
North West Leicestershire District Council,31UH,HRAHRM,Housing Repairs,HRA Housing Repairs & Maintenance,Gas Servicing,Invoice,2614.22 ,1303566,18/03/2015,A033342,J Tomlinson Ltd,601032,"3,137.06",522.84,PD,6452-1283,1283
North West Leicestershire District Council,31UH,HRAHRM,Housing Repairs,HRA Housing Repairs & Maintenance,Gas Servicing,Invoice,2564.60 ,1303567,18/03/2015,A033342,J Tomlinson Ltd,601033,"3,077.52",512.92,PD,6452-1283,1283
North West Leicestershire District Council,31UH,HRAHRM,Housing Repairs,HRA Housing Repairs & Maintenance,Gas Servicing,Invoice,2330.60 ,1303568,18/03/2015,A033342,J Tomlinson Ltd,601034,"2,796.72",466.12,PD,6452-1283,1283
North West Leicestershire District Council,31UH,HRAHRM,Housing Repairs,HRA Housing Repairs & Maintenance,Gas Servicing,Invoice,2551.01 ,1303569,18/03/2015,A033342,J Tomlinson Ltd,601597,"3,061.21",510.20,PD,6452-1287,1287
North West Leicestershire District Council,31UH,HRAHRM,Housing Repairs,HRA Housing Repairs & Maintenance,Housing Repairs,Invoice,341.53 ,1303616,18/03/2015,A031787,Laker BMS Ltd,IN00038189,409.84,68.31,PD,5103-1281,1281
North West Leicestershire District Council,31UH,HRAHRM,Housing Repairs,HRA Housing Repairs & Maintenance,Housing Repairs,Invoice,2800.00 ,1303590,18/03/2015,A031787,Laker BMS Ltd,IN00037504,"3,360.00",560.00,PD,5005-1282,1282
North West Leicestershire District Council,31UH,HRAHRM,Housing Repairs,HRA Housing Repairs & Maintenance,Housing Repairs,Invoice,581.94 ,1303591,18/03/2015,A031787,Laker BMS Ltd,IN00037505,698.33,116.39,PD,5103-1291,1291
North West Leicestershire District Council,31UH,HRAHRM,Housing Repairs,HRA Housing Repairs & Maintenance,Housing Repairs,Invoice,2800.00 ,1303593,18/03/2015,A031787,Laker BMS Ltd,IN00037508,"3,360.00",560.00,PD,6447-1281,1281
North West Leicestershire District Council,31UH,HRAHRM,Housing Repairs,HRA Housing Repairs & Maintenance,Housing Repairs,Invoice,884.80 ,1303595,18/03/2015,A031787,Laker BMS Ltd,IN00037603,"1,061.76",176.96,PD,5103-1290,1290
North West Leicestershire District Council,31UH,HRAHRM,Housing Repairs,HRA Housing Repairs & Maintenance,Housing Repairs,Invoice,1512.12 ,1303596,18/03/2015,A031787,Laker BMS Ltd,IN00037604,"1,814.54",302.42,PD,5103-1282,1282
North West Leicestershire District Council,31UH,HRAHRM,Housing Repairs,HRA Housing Repairs & Maintenance,Housing Repairs,Invoice,737.33 ,1303597,18/03/2015,A031787,Laker BMS Ltd,IN00037816,884.80,147.47,PD,5005-1282,1282
North West Leicestershire District Council,31UH,HRAHRM,Housing Repairs,HRA Housing Repairs & Maintenance,Housing Repairs,Invoice,300.00 ,1303598,18/03/2015,A031787,Laker BMS Ltd,IN00037819,360.00,60.00,PD,5103-1281,1281
North West Leicestershire District Council,31UH,HRAHRM,Housing Repairs,HRA Housing Repairs & Maintenance,Housing Repairs,Invoice,521.88 ,1303605,18/03/2015,A031787,Laker BMS Ltd,IN00038174,626.26,104.38,PD,5103-1281,1281
North West Leicestershire District Council,31UH,HRAHRM,Housing Repairs,HRA Housing Repairs & Maintenance,Housing Repairs,Invoice,895.85 ,1303610,18/03/2015,A031787,Laker BMS Ltd,IN00038179,"1,075.02",179.17,PD,5103-1281,1281
North West Leicestershire District Council,31UH,HRAHRM,Housing Repairs,HRA Housing Repairs & Maintenance,Housing Repairs,Invoice,1601.38 ,1303612,18/03/2015,A031787,Laker BMS Ltd,IN00038181,"1,921.66",320.28,PD,5103-1291,1291
North West Leicestershire District Council,31UH,HRAHRM,Housing Repairs,HRA Housing Repairs & Maintenance,Housing Repairs,Invoice,409.31 ,1303601,18/03/2015,A031787,Laker BMS Ltd,IN00037961,491.17,81.86,PD,5103-1291,1291
North West Leicestershire District Council,31UH,HRAHRM,Housing Repairs,HRA Housing Repairs & Maintenance,Contract Payments (Dws) Ext,Invoice,19645.04 ,1303797,18/03/2015,A028261,TECSERV UK LIMITED,20951,"23,574.05","3,929.01",PD,6468-1510,1510
North West Leicestershire District Council,31UH,HRAHRM,Housing Repairs,HRA Housing Repairs & Maintenance,Contract Payments (Dws) Ext,Invoice,27382.60 ,1303798,18/03/2015,A028261,TECSERV UK LIMITED,21167,"32,859.12","5,476.52",PD,6468-1510,1510
North West Leicestershire District Council,31UH,HRAHRM,Housing Repairs,HRA Housing Repairs & Maintenance,Contract Payments (Dws) Ext,Invoice,33468.40 ,1303799,18/03/2015,A028261,TECSERV UK LIMITED,21319,"40,162.08","6,693.68",PD,6468-1510,1510
North West Leicestershire District Council,31UH,HRAHRM,Housing Repairs,HRA Housing Repairs & Maintenance,Contract Payments (Dws) Ext,Invoice,20570.96 ,1303796,18/03/2015,A028261,TECSERV UK LIMITED,20857,"24,685.15","4,114.19",PD,6468-1510,1510
North West Leicestershire District Council,31UH,HRAHRM,Housing Repairs,HRA Housing Repairs & Maintenance,Solid Fuel Supplies,Invoice,2084.00 ,1303967,25/03/2015,A035675,Elite Sweep Service,1184,"2,500.80",416.80,PD,6452-1287,1287
North West Leicestershire District Council,31UH,HRAHRM,Housing Repairs,HRA Housing Repairs & Maintenance,Property Surveys,Invoice,400.00 ,1304248,25/03/2015,A008757,Ksa Consulting Engineers Ltd,5841,480.00,80.00,PD,5103-1283,1283
North West Leicestershire District Council,31UH,HRAHRM,Housing Repairs,HRA Housing Repairs & Maintenance,Property Surveys,Invoice,400.00 ,1304249,25/03/2015,A008757,Ksa Consulting Engineers Ltd,5842,480.00,80.00,PD,5103-1283,1283
North West Leicestershire District Council,31UH,HRAHRM,Housing Repairs,HRA Housing Repairs & Maintenance,Housing Repairs,Invoice,810.69 ,1304255,25/03/2015,A031787,Laker BMS Ltd,IN00035846,972.83,162.14,PD,5005-1290,1290
North West Leicestershire District Council,31UH,HRAHRM,Housing Repairs,HRA Housing Repairs & Maintenance,Housing Repairs,Invoice,492.22 ,1304256,25/03/2015,A031787,Laker BMS Ltd,IN00035943,590.66,98.44,PD,5005-1292,1292
North West Leicestershire District Council,31UH,HRAHRM,Housing Repairs,HRA Housing Repairs & Maintenance,Housing Repairs,Invoice,1078.18 ,1304259,25/03/2015,A031787,Laker BMS Ltd,IN00035741,"1,293.82",215.64,PD,5005-1288,1288
North West Leicestershire District Council,31UH,HRAHRM,Housing Repairs,HRA Housing Repairs & Maintenance,Housing Repairs,Invoice,574.93 ,1304260,25/03/2015,A031787,Laker BMS Ltd,IN00037125,689.92,114.99,PD,5103-1287,1287
North West Leicestershire District Council,31UH,HRAHRM,Housing Repairs,HRA Housing Repairs & Maintenance,Housing Repairs,Invoice,315.39 ,1304261,25/03/2015,A031787,Laker BMS Ltd,IN00038188,378.47,63.08,PD,5005-1284,1284
North West Leicestershire District Council,31UH,HRAHRM,Housing Repairs,HRA Housing Repairs & Maintenance,Housing Repairs,Invoice,2800.00 ,1304263,25/03/2015,A031787,Laker BMS Ltd,IN00038197,"3,360.00",560.00,PD,6447-1283,1283
North West Leicestershire District Council,31UH,HRAHRM,Housing Repairs,HRA Housing Repairs & Maintenance,Housing Repairs,Invoice,268.80 ,1304264,25/03/2015,A031787,Laker BMS Ltd,IN00038238,322.56,53.76,PD,5103-1286,1286
North West Leicestershire District Council,31UH,HRAHRM,Housing Repairs,HRA Housing Repairs & Maintenance,Housing Repairs,Invoice,252.08 ,1304265,25/03/2015,A031787,Laker BMS Ltd,IN00038356,302.50,50.42,PD,5005-1286,1286
North West Leicestershire District Council,31UH,HRAHRM,Housing Repairs,HRA Housing Repairs & Maintenance,Housing Repairs,Invoice,1431.75 ,1304258,25/03/2015,A031787,Laker BMS Ltd,IN00032893,"1,718.10",286.35,PD,5005-1285,1285
North West Leicestershire District Council,31UH,HRAHRM,Housing Repairs,HRA Housing Repairs & Maintenance,Contract Payments (Dws) Ext,Invoice,2525.00 ,1304694,31/03/2015,A000950,Leicestershire County Council,27101561,"3,030.00",505.00,PD,6425-1510,1510
North West Leicestershire District Council,31UH,HRAHRM,Housing Repairs,HRA Housing Repairs & Maintenance,Contract Payments (Dws) Ext,Invoice,2000.00 ,1304695,31/03/2015,A000950,Leicestershire County Council,27101562,"2,400.00",400.00,PD,6425-1510,1510
North West Leicestershire District Council,31UH,HRAHRM,Housing Repairs,HRA Housing Repairs & Maintenance,Contract Payments (Dws) Ext,Invoice,1650.00 ,1304696,31/03/2015,A000950,Leicestershire County Council,27101563,"1,980.00",330.00,PD,6425-1510,1510
North West Leicestershire District Council,31UH,HRAHRM,Housing Repairs,HRA Housing Repairs & Maintenance,Contract Payments (Dws) Ext,Invoice,608.03 ,1304719,31/03/2015,A041790,KONE,29522347,729.64,121.61,PD,6469-1510,1510
North West Leicestershire District Council,31UH,HRAHRM,Housing Repairs,HRA Housing Repairs & Maintenance,Contract Payments (Dws) Ext,Invoice,1435.00 ,1304697,31/03/2015,A000950,Leicestershire County Council,27101564,"1,722.00",287.00,PD,6425-1510,1510
North West Leicestershire District Council,31UH,HRAHRM,Housing Repairs,HRA Housing Repairs & Maintenance,Contract Payments (Dws) Ext,Invoice,1100.00 ,1304698,31/03/2015,A000950,Leicestershire County Council,27101565,"1,320.00",220.00,PD,6425-1510,1510
North West Leicestershire District Council,31UH,HRAHRM,Housing Repairs,HRA Housing Repairs & Maintenance,Door Entry Systems,Invoice,261.60 ,1304702,31/03/2015,A023130,Geze Uk Limited,88208289,313.92,52.32,PD,5103-1291,1291
North West Leicestershire District Council,31UH,HRAHRM,Housing Repairs,HRA Housing Repairs & Maintenance,Housing Repairs,Invoice,2318.37 ,1304704,31/03/2015,A031787,Laker BMS Ltd,IN00036784,"2,782.04",463.67,PD,5005-1284,1284
North West Leicestershire District Council,31UH,HRAHRM,Housing Repairs,HRA Housing Repairs & Maintenance,Gas Servicing,Invoice,539.81 ,1304715,31/03/2015,A033342,J Tomlinson Ltd,599671,647.77,107.96,PD,5103-1289,1289
North West Leicestershire District Council,31UH,HRAHRM,Housing Repairs,HRA Housing Repairs & Maintenance,Gas Servicing,Invoice,965.60 ,1304716,31/03/2015,A033342,J Tomlinson Ltd,599672,"1,158.72",193.12,PD,5103-1283,1283
North West Leicestershire District Council,31UH,HRAHRM,Housing Repairs,HRA Housing Repairs & Maintenance,Prepainting,Invoice,819.85 ,1304794,31/03/2015,A035827,Novus Property Solutions Limited,15031205/166,983.82,163.97,PD,5023-0173,0173
North West Leicestershire District Council,31UH,HRAHRM,Housing Repairs,HRA Housing Repairs & Maintenance,Prepainting,Invoice,712.15 ,1304824,31/03/2015,A035827,Novus Property Solutions Limited,15031205/33,854.58,142.43,PD,5023-0173,0173
North West Leicestershire District Council,31UH,HRAHRM,Housing Repairs,HRA Housing Repairs & Maintenance,Prepainting,Invoice,379.70 ,1304873,31/03/2015,A035827,Novus Property Solutions Limited,15031205/78,455.64,75.94,PD,5023-0173,0173
North West Leicestershire District Council,31UH,HRAHRM,Housing Repairs,HRA Housing Repairs & Maintenance,Housing Repairs,Invoice,1836.01 ,1304900,31/03/2015,A031787,Laker BMS Ltd,IN00038108,"2,203.21",367.20,PD,6425-1510,1510
North West Leicestershire District Council,31UH,HRAHRM,Housing Repairs,HRA Housing Repairs & Maintenance,Housing Repairs,Invoice,2791.38 ,1304901,31/03/2015,A031787,Laker BMS Ltd,IN00038109,"3,349.66",558.28,PD,6425-1510,1510
North West Leicestershire District Council,31UH,HRAHRM,Housing Repairs,HRA Housing Repairs & Maintenance,Housing Repairs,Invoice,1836.01 ,1304902,31/03/2015,A031787,Laker BMS Ltd,IN00038110,"2,203.21",367.20,PD,6425-1510,1510
North West Leicestershire District Council,31UH,HRAHRM,Housing Repairs,HRA Housing Repairs & Maintenance,Housing Repairs,Invoice,1836.01 ,1304903,31/03/2015,A031787,Laker BMS Ltd,IN00038111,"2,203.21",367.20,PD,6425-1510,1510
North West Leicestershire District Council,31UH,HRAHRM,Housing Repairs,HRA Housing Repairs & Maintenance,Housing Repairs,Invoice,2790.88 ,1304904,31/03/2015,A031787,Laker BMS Ltd,IN00038112,"3,349.06",558.18,PD,6425-1510,1510
North West Leicestershire District Council,31UH,HRAHRM,Housing Repairs,HRA Housing Repairs & Maintenance,Housing Repairs,Invoice,2796.88 ,1304905,31/03/2015,A031787,Laker BMS Ltd,IN00038113,"3,356.26",559.38,PD,6425-1510,1510
North West Leicestershire District Council,31UH,HRAHRM,Housing Repairs,HRA Housing Repairs & Maintenance,Housing Repairs,Invoice,1836.01 ,1304906,31/03/2015,A031787,Laker BMS Ltd,IN00038114,"2,203.21",367.20,PD,6425-1510,1510
North West Leicestershire District Council,31UH,HRAHRM,Housing Repairs,HRA Housing Repairs & Maintenance,Housing Repairs,Invoice,1834.88 ,1304907,31/03/2015,A031787,Laker BMS Ltd,IN00038115,"2,201.86",366.98,PD,6425-1510,1510
North West Leicestershire District Council,31UH,HRAHRM,Housing Repairs,HRA Housing Repairs & Maintenance,Prepainting,Invoice,298.38 ,1304893,31/03/2015,A035827,Novus Property Solutions Limited,15031205/96,358.06,59.68,PD,5023-0173,0173
North West Leicestershire District Council,31UH,HRAHRM,Housing Repairs,HRA Housing Repairs & Maintenance,Housing Repairs,Invoice,2960.63 ,1304897,31/03/2015,A031787,Laker BMS Ltd,IN00038105,"3,552.76",592.13,PD,6425-1510,1510
North West Leicestershire District Council,31UH,HRAHRM,Housing Repairs,HRA Housing Repairs & Maintenance,Housing Repairs,Invoice,1836.01 ,1304898,31/03/2015,A031787,Laker BMS Ltd,IN00038106,"2,203.21",367.20,PD,6425-1510,1510
North West Leicestershire District Council,31UH,HRAHRM,Housing Repairs,HRA Housing Repairs & Maintenance,Housing Repairs,Invoice,1836.01 ,1304899,31/03/2015,A031787,Laker BMS Ltd,IN00038107,"2,203.21",367.20,PD,6425-1510,1510
North West Leicestershire District Council,31UH,HRAPBS,Housing,HRA Performance & Business Support,Tenants Scrutiny Panel,Invoice,530.80 ,1303153,11/03/2015,A041709,I 4 Design,0031A,530.80,0.00,PD,5080-0939,0939
North West Leicestershire District Council,31UH,HLC,Leisure Centres,Hermitage Leisure Centre,Protective Clothing,Invoice,720.40 ,1302960,04/03/2015,A001386,Revolution,46021,864.48,144.08,PD,5501-0770,0770
North West Leicestershire District Council,31UH,HRAPBS,Housing,HRA Performance & Business Support,Subscriptions,Invoice,7032.90 ,1303837,31/03/2015,A033843,Housemark Ltd,PROFORMA,"8,439.48","1,406.58",PD,1203-0901,0901
North West Leicestershire District Council,31UH,ENOT,Street Management,Environment Transport,Hire Of Operational Equipment,Invoice,250.00 ,1302722,04/03/2015,A000991,J F Lloyd & Sons,2015,300.00,50.00,PD,0280-0733,0733
North West Leicestershire District Council,31UH,EBC,Planning & Development,Building Control,Fees - L.C.C.,Invoice,1596.00 ,1302793,04/03/2015,A027423,Leicestershire County Council,25720918,"1,596.00",0.00,PD,0870-0842,0842
North West Leicestershire District Council,31UH,HRAPBS,Housing,HRA Performance & Business Support,Agency Staff,Invoice,1515.88 ,1302690,04/03/2015,A041893,Michael Page International Recruitment Ltd,5781346,"1,819.06",303.18,PD,1207-0080,0080
North West Leicestershire District Council,31UH,HLC,Leisure Centres,Hermitage Leisure Centre,General Repairs,Invoice,269.80 ,1302763,11/03/2015,A034993,CSS Pools & Leisure,PS04396,323.76,53.96,PD,5501-0100,0100
North West Leicestershire District Council,31UH,ICT,Information Technology,ICT Services,Admin Equipment - Maintenance,Invoice,1258.00 ,1302073,25/03/2015,A042093,Support Warehouse Ltd T/A Care Pack Sales,62894,"1,509.60",251.60,PD,1011-0696,0696
North West Leicestershire District Council,31UH,SPA,Leisure & Culture,Sport & Physical Activity,Local Sports Alliance,Invoice,250.22 ,1302116,04/03/2015,A036681,BHR Pharmaceuticals Limited,938728,300.26,50.04,PD,0695-2395,2395
North West Leicestershire District Council,31UH,HRAPBS,Housing,HRA Performance & Business Support,Agency Staff,Invoice,2730.25 ,1302694,04/03/2015,A041893,Michael Page International Recruitment Ltd,5781737,"3,276.30",546.05,PD,1207-0080,0080
North West Leicestershire District Council,31UH,EEHL,Environmental Health,Environmental Health & Licensing,Advertising,Invoice,303.27 ,1303220,11/03/2015,A001395,Euro RSCG People T/A Havas People Ltd,564152,363.87,60.60,PD,0310-0941,0941
North West Leicestershire District Council,31UH,HRAPBS,Housing,HRA Performance & Business Support,Training Expenses,Invoice,965.00 ,1302912,18/03/2015,A040435,Kaplan Financial,SINV15-022045,"1,158.00",193.00,PD,1203-0042,0042
North West Leicestershire District Council,31UH,EDC,Planning & Development,Environment - Development Control,Advertising,Invoice,292.45 ,1303431,18/03/2015,A001395,Euro RSCG People T/A Havas People Ltd,564154,350.89,58.44,PD,0915-0941,0941
North West Leicestershire District Council,31UH,EDC,Planning & Development,Environment - Development Control,Advertising,Invoice,552.41 ,1303432,18/03/2015,A001395,Euro RSCG People T/A Havas People Ltd,563663,662.79,110.38,PD,0915-0941,0941
North West Leicestershire District Council,31UH,EDC,Planning & Development,Environment - Development Control,Advertising,Invoice,489.55 ,1303433,18/03/2015,A001395,Euro RSCG People T/A Havas People Ltd,564153,587.37,97.82,PD,0915-0941,0941
North West Leicestershire District Council,31UH,EDC,Planning & Development,Environment - Development Control,Advertising,Invoice,280.18 ,1303436,18/03/2015,A001395,Euro RSCG People T/A Havas People Ltd,563661,336.17,55.99,PD,0915-0941,0941
North West Leicestershire District Council,31UH,HLC,Leisure Centres,Hermitage Leisure Centre,Service Contracts,Invoice,1850.66 ,1302727,04/03/2015,A001092,John Merison BMC,537,"2,220.79",370.13,PD,5501-0718,0718
North West Leicestershire District Council,31UH,HLC,Leisure Centres,Hermitage Leisure Centre,Service Contracts,Invoice,729.00 ,1302728,04/03/2015,A001092,John Merison BMC,533,874.80,145.80,PD,5501-0718,0718
North West Leicestershire District Council,31UH,ICT,Information Technology,ICT Services,Admin Equipment - Maintenance,Invoice,2500.00 ,1302723,04/03/2015,A034157,Idox Software Ltd,7004617,"3,000.00",500.00,PD,1011-0696,0696
North West Leicestershire District Council,31UH,HPLC,Leisure Centres,Hood Park Leisure Centre,Maintenance/Office Expenditure,Invoice,610.00 ,1302726,04/03/2015,A001092,John Merison BMC,538,732.00,122.00,PD,5501-0118,0118
North West Leicestershire District Council,31UH,HPBC,Leisure Centres,Hood Park Bar and Catering,Catering Provisions,Invoice,394.08 ,1302880,04/03/2015,A001264,Palmer Harvey Mclane Ltd,3/2404225,466.04,71.96,PD,5513-0750,0750
North West Leicestershire District Council,31UH,HRAPBS,Housing,HRA Performance & Business Support,Legal & Professional Services,Invoice,1474.00 ,1302691,04/03/2015,A041893,Michael Page International Recruitment Ltd,5782600,"1,768.80",294.80,PD,1207-0800,0800
North West Leicestershire District Council,31UH,HRAPBS,Housing,HRA Performance & Business Support,Agency Staff,Invoice,1470.00 ,1302692,04/03/2015,A041893,Michael Page International Recruitment Ltd,5782610,"1,764.00",294.00,PD,1207-0080,0080
North West Leicestershire District Council,31UH,HRAPBS,Housing,HRA Performance & Business Support,Agency Staff,Invoice,1230.00 ,1302693,04/03/2015,A041893,Michael Page International Recruitment Ltd,5783270,"1,476.00",246.00,PD,1207-0080,0080
North West Leicestershire District Council,31UH,HPLC,Leisure Centres,Hood Park Leisure Centre,General Repairs,Invoice,415.00 ,1302729,04/03/2015,A041505,PRC Fabrications Ltd,I/000758,498.00,83.00,PD,5513-0100,0100
North West Leicestershire District Council,31UH,FINPLA,Finance,Financial Planning,Pension- Added years/Capital Costs,Invoice,1667.77 ,1302966,04/03/2015,A028310,Leicestershire County Council Pension Fu,P0653,"1,667.77",0.00,PD,0821-0060,0060
North West Leicestershire District Council,31UH,LDLS,Legal & Democratic,Legal Services,Legal Services- Business Development,Invoice,505.00 ,1303231,11/03/2015,A042063,Recognition Express Coventry,COV5618,606.00,101.00,PD,1017-1078,1078
North West Leicestershire District Council,31UH,CS,Communications,Corporate - Customer Services,Postages,Invoice,2552.28 ,1303259,11/03/2015,A000079,Neopost Limited,2015014026,"3,062.74",510.46,PD,0838-0850,0850
North West Leicestershire District Council,31UH,PROPCL,Property Services,Property Commercial Lettings,Equipment Operating Leases,Invoice,516.05 ,1303840,25/03/2015,A032630,Pitney Bowes Finance Plc,BL05114000,619.26,103.21,PD,0044-0716,0716
North West Leicestershire District Council,31UH,HLC,Leisure Centres,Hermitage Leisure Centre,GP Referral,Invoice,514.46 ,1303002,11/03/2015,A000969,J P Lennard Ltd,746760,617.35,102.89,PD,5501-1143,1143
North West Leicestershire District Council,31UH,PROPFM,Property Services,Property Facilities Management,Cleaning & Domestic Equipment,Invoice,351.23 ,1303162,11/03/2015,A000958,ESPO,1912153,421.49,70.26,PD,0210-0704,0704
North West Leicestershire District Council,31UH,HLC,Leisure Centres,Hermitage Leisure Centre,Service Contracts,Invoice,819.00 ,1303186,11/03/2015,A034159,Chubb Fire Limted,5092432,982.80,163.80,PD,5501-0718,0718
North West Leicestershire District Council,31UH,HLC,Leisure Centres,Hermitage Leisure Centre,Operational Equipment,Invoice,253.00 ,1303165,11/03/2015,A000958,ESPO,1913042,303.60,50.60,PD,5513-0710,0710
North West Leicestershire District Council,31UH,ENOT,Street Management,Environment Transport,Non Scheduled Maintenance - Parts,Invoice,489.00 ,1302780,04/03/2015,A000625,Ford & Slater Group Ltd,1266543,586.80,97.80,PD,5895-0541,0541
North West Leicestershire District Council,31UH,ENOT,Street Management,Environment Transport,Non Scheduled Maintenance - Parts,Invoice,381.37 ,1302800,04/03/2015,A001647,Terberg Matec Uk,96308528,457.65,76.28,PD,5888-0541,0541
North West Leicestershire District Council,31UH,LDLS,Legal & Democratic,Legal Services,Agency Staff,Invoice,659.77 ,1302895,04/03/2015,A028530,Venn Group Limited,3035849,791.72,131.95,PD,1017-0080,0080
North West Leicestershire District Council,31UH,SPA,Leisure & Culture,Sport & Physical Activity,Local Sports Alliance,Invoice,390.00 ,1302893,04/03/2015,A042054,Insight 63 Ltd,SL2070,468.00,78.00,PD,0695-1174,1174
North West Leicestershire District Council,31UH,ENOT,Street Management,Environment Transport,Repairs - Parts,Invoice,802.70 ,1302978,11/03/2015,A032114,Watling JCB Ltd,13196005,963.24,160.54,PD,5930-0533,0533
North West Leicestershire District Council,31UH,ENOT,Street Management,Environment Transport,Repairs - Parts,Invoice,255.34 ,1302979,11/03/2015,A032114,Watling JCB Ltd,13196004,306.41,51.07,PD,5930-0533,0533
North West Leicestershire District Council,31UH,ENOT,Street Management,Environment Transport,Operational Equipment,Invoice,3225.00 ,1303056,11/03/2015,A041820,Transport Support Ltd,16600,"3,870.00",645.00,PD,5874-0710,0710
North West Leicestershire District Council,31UH,LDLS,Legal & Democratic,Legal Services,Computer Development,Invoice,681.00 ,1303323,11/03/2015,A000958,ESPO,1915697,817.20,136.20,PD,1017-0897,0897
North West Leicestershire District Council,31UH,SPA,Leisure & Culture,Sport & Physical Activity,Other Miscellaneous Expenses,Invoice,1040.00 ,1303428,18/03/2015,A029490,King Edward VII Science & Sport,KEVII001262,"1,040.00",0.00,PD,0695-0949,0949
North West Leicestershire District Council,31UH,HS,Housing Strategy,Community - Housing Strategy,Spend to Save Schemes,Invoice,305.00 ,1303437,18/03/2015,A035272,Solon Security,SI15001847,366.00,61.00,PD,0570-5929,5929
North West Leicestershire District Council,31UH,HLC,Leisure Centres,Hermitage Leisure Centre,General Repairs,Invoice,305.25 ,1303448,18/03/2015,A000454,Dalesauna Limited,SIN129580,366.30,61.05,PD,5501-0100,0100
North West Leicestershire District Council,31UH,EPP,Planning & Development,Environment Planning Policy,Local Development Framework,Invoice,3400.00 ,1302801,25/03/2015,A028258,Peter Brett Associates T/a Roger Tym & P,115003 JWA,"4,080.00",680.00,PD,0925-1912,1912
North West Leicestershire District Council,31UH,ICT,Information Technology,ICT Services,Training Expenses,Invoice,1595.00 ,1304677,31/03/2015,A042117,The Knowledge Academy Ltd,SO1076853,"1,914.00",319.00,PD,1011-0042,0042
North West Leicestershire District Council,31UH,LDCE,Legal & Democratic,Civic Expenses,Stationery,Invoice,457.95 ,1302798,04/03/2015,A032369,Badgemaster Limited,1065477,549.54,91.59,PD,1018-0783,0783
North West Leicestershire District Council,31UH,ENOP,Street Management,Environment Parks,General Repairs,Invoice,508.55 ,1302803,04/03/2015,A001648,Terratruck Dist. Svcs Ltd,2/554195,610.26,101.71,PD,0477-0100,0100
North West Leicestershire District Council,31UH,ENOT,Street Management,Environment Transport,Operational Equipment - Rep & Maint,Invoice,318.00 ,1302851,04/03/2015,A031882,J A Envirotanks,INV03591,381.60,63.60,PD,5992-0732,0732
North West Leicestershire District Council,31UH,ENOP,Street Management,Environment Parks,General Repairs,Invoice,588.00 ,1302897,04/03/2015,A038547,Cyril John Decorators Limited,23662,705.60,117.60,PD,0477-0100,0100
North West Leicestershire District Council,31UH,EPP,Planning & Development,Environment Planning Policy,Town Centre & Area Regeneration - Initia,Invoice,263.50 ,1302896,04/03/2015,A042107,Leicester & Leicestershire Enterprise Partnership,83709946,316.20,52.70,PD,0925-1910,1910
North West Leicestershire District Council,31UH,ECP,Planning & Development,Environment Community Planning,Neighbourhood Action Teams,Invoice,267.50 ,1302816,11/03/2015,A010779,Primrose Hotels Ltd T/A Hermitage Park H,44137,275.00,7.50,PD,0935-5875,5875
North West Leicestershire District Council,31UH,HPLC,Leisure Centres,Hood Park Leisure Centre,Equipment For Resale,Invoice,259.65 ,1302845,11/03/2015,A001833,Zoggs International Ltd,I-0298034,311.58,51.93,PD,5513-0706,0706
North West Leicestershire District Council,31UH,HLBC,Leisure Centres,Hermitage Bar & Catering,Bar Provisions,Invoice,317.46 ,1303521,18/03/2015,A039915,LWC - Birmingham,4785740,380.95,63.49,PD,5501-0751,0751
North West Leicestershire District Council,31UH,CHEX,Chief Exec,Chief Executive,Town Centre & Area Regeneration - Initia,Invoice,4831.00 ,1303658,18/03/2015,A042132,Kay Greenbank,2015/1,"4,831.00",0.00,PD,0925-1910,1910
North West Leicestershire District Council,31UH,ICT,Information Technology,ICT Services,Machinery & Equipment,Invoice,9900.00 ,1302913,04/03/2015,A041704,StyleTech Solutions Ltd,SI-1030,"11,880.00","1,980.00",PD,7430-1522,1522
North West Leicestershire District Council,31UH,ICT,Information Technology,ICT Services,Consumable Materials,Invoice,673.20 ,1303159,11/03/2015,A038178,Antalis Limited,4579879,807.84,134.64,PD,0837-0722,0722
North West Leicestershire District Council,31UH,ENOP,Street Management,Environment Parks,Operational Equipment - Purchases,Invoice,3595.00 ,1303170,11/03/2015,A034203,Taylormade Castings Ltd,4322,"4,314.00",719.00,PD,0478-0731,0731
North West Leicestershire District Council,31UH,EEHL,Environmental Health,Environmental Health & Licensing,Training Expenses,Invoice,500.00 ,1303204,11/03/2015,A028222,Fraser Brown Solicitors,113754,600.00,100.00,PD,0310-0042,0042
North West Leicestershire District Council,31UH,ECP,Planning & Development,Environment Community Planning,Valley - Community Planning,Invoice,250.00 ,1303221,11/03/2015,A041477,CASE,X70,300.00,50.00,PD,0935-1927,1927
North West Leicestershire District Council,31UH,ENOP,Street Management,Environment Parks,Operational Equipment - Purchases,Invoice,626.73 ,1303260,11/03/2015,A029426,Buxton's Ltd,155241,724.47,97.74,PD,0390-0731,0731
North West Leicestershire District Council,31UH,HLBC,Leisure Centres,Hermitage Bar & Catering,Catering Provisions,Invoice,264.43 ,1303517,18/03/2015,A039841,P & H Direct Van Sales,UEI09337,314.01,49.58,PD,5501-0750,0750
North West Leicestershire District Council,31UH,HRAHRM,Housing Repairs,HRA Housing Repairs & Maintenance,Protective Clothing,Invoice,801.44 ,1303857,25/03/2015,A009933,Westbury Industrial Supplies,24828,961.73,160.29,PD,5103-0770,0770
North West Leicestershire District Council,31UH,PROPCL,Property Services,Property Commercial Lettings,Postages,Invoice,2497.75 ,1302964,04/03/2015,A008204,Purchase Power,BC424006,"2,593.30",95.55,PD,0044-0850,0850
North West Leicestershire District Council,31UH,ENOP,Street Management,Environment Parks,General Repairs,Invoice,320.86 ,1303051,11/03/2015,A000214,Breedon Aggregates England Ltd,10606026,385.04,64.18,PD,0477-0100,0100
North West Leicestershire District Council,31UH,ENOT,Street Management,Environment Transport,Hire Of Transport,Invoice,250.00 ,1303229,11/03/2015,A011490,JB Tool Hire Ltd,25977,300.00,50.00,PD,0370-0580,0580
North West Leicestershire District Council,31UH,PROPFM,Property Services,Property Facilities Management,Building Security,Invoice,420.00 ,1303139,11/03/2015,A013049,Regarde Security Ltd,4942,504.00,84.00,PD,0210-0384,0384
North West Leicestershire District Council,31UH,CDCC,Leisure Centres,Castle Donington Community College,Alternative Fitness Suite,Invoice,472.00 ,1303520,18/03/2015,A005413,Elliott Group Limited,17066981,566.40,94.40,PD,0620-0968,0968
North West Leicestershire District Council,31UH,ENOT,Street Management,Environment Transport,Repairs - Parts,Invoice,254.05 ,1303624,18/03/2015,A036178,Taylor Engineering & Fabrications Ltd,19042,304.86,50.81,PD,5890-0533,0533
North West Leicestershire District Council,31UH,CHEX,Chief Exec,Chief Executive,Interim Support,Invoice,900.00 ,1303619,18/03/2015,A040743,Janice Milsom,SG - 02/15,900.00,0.00,PD,1510-0079,0079
North West Leicestershire District Council,31UH,EEHL,Environmental Health,Environmental Health & Licensing,Vet Inspection,Invoice,467.55 ,1303812,25/03/2015,A033670,Eville And Jones,2014,561.06,93.51,PD,0324-0835,0835
North West Leicestershire District Council,31UH,CP,Communications,Corporate - Communications,Consultant Fees,Invoice,400.00 ,1304287,25/03/2015,A041895,Hopwood Public Relations,S005543,480.00,80.00,PD,1522-0829,0829
North West Leicestershire District Council,31UH,ENOT,Street Management,Environment Transport,Repairs - Parts,Invoice,511.83 ,1304524,31/03/2015,A000906,Kovacs Limited,101069,614.20,102.37,PD,5873-0533,0533
North West Leicestershire District Council,31UH,ENOT,Street Management,Environment Transport,Good Vehicle Plating,Invoice,603.00 ,1302959,04/03/2015,A033469,Anderson Commercials Limited,22576,634.00,31.00,PD,5896-0982,0982
North West Leicestershire District Council,31UH,ECCTV,Planning & Development,Environment - Town Centre/CCTV,Agency Staff,Invoice,4028.99 ,1302999,11/03/2015,A038132,Premier Security Services (Midlands) Lim,8535,"4,834.79",805.80,PD,0125-0080,0080
North West Leicestershire District Council,31UH,HLBC,Leisure Centres,Hermitage Bar & Catering,Catering Provisions,Invoice,451.58 ,1303189,11/03/2015,A000218,Briers Butchers Ltd,15-Feb,451.58,0.00,PD,5513-0750,0750
North West Leicestershire District Council,31UH,PROPFM,Property Services,Property Facilities Management,Window Cleaning,Invoice,350.00 ,1304282,25/03/2015,A000129,Gleam Team Services Limited,8486,350.00,0.00,PD,0210-0422,0422
North West Leicestershire District Council,31UH,PROPFM,Property Services,Property Facilities Management,Window Cleaning,Invoice,350.00 ,1304351,25/03/2015,A000129,Gleam Team Services Limited,8363,350.00,0.00,PD,0210-0422,0422
North West Leicestershire District Council,31UH,FINPLA,Finance,Financial Planning,Interim Support,Invoice,537.50 ,1302965,04/03/2015,A034975,SAM Contracting Ltd,216,645.00,107.50,PD,1003-0079,0079
North West Leicestershire District Council,31UH,PROPFM,Property Services,Property Facilities Management,General Repairs,Invoice,1394.88 ,1303006,11/03/2015,A001092,John Merison BMC,571,"1,673.86",278.98,PD,0210-0100,0100
North West Leicestershire District Council,31UH,HLC,Leisure Centres,Hermitage Leisure Centre,Maintenance/Office Expenditure,Invoice,734.64 ,1303191,11/03/2015,A001092,John Merison BMC,574,881.57,146.93,PD,5501-0118,0118
North West Leicestershire District Council,31UH,HLC,Leisure Centres,Hermitage Leisure Centre,Service Contracts,Invoice,287.00 ,1303192,11/03/2015,A001092,John Merison BMC,572,344.40,57.40,PD,5501-0718,0718
North West Leicestershire District Council,31UH,HLC,Leisure Centres,Hermitage Leisure Centre,Administrative Equipment,Invoice,335.45 ,1303193,11/03/2015,A001092,John Merison BMC,570,402.54,67.09,PD,1011-0700,0700
North West Leicestershire District Council,31UH,EEHL,Environmental Health,Environmental Health & Licensing,Subscriptions,Invoice,1000.00 ,1303205,11/03/2015,A000103,Association Of Port Health,2015/004,"1,200.00",200.00,PD,0324-0901,0901
North West Leicestershire District Council,31UH,HPBC,Leisure Centres,Hood Park Bar and Catering,Vending Machine Provisions,Invoice,1053.01 ,1303210,11/03/2015,A001264,Palmer Harvey Mclane Ltd,3/2408260,"1,258.31",205.30,PD,5513-0752,0752
North West Leicestershire District Council,31UH,HRAPBS,Housing,HRA Performance & Business Support,Agency Staff,Invoice,1457.25 ,1303013,11/03/2015,A041893,Michael Page International Recruitment Ltd,5786499,"1,748.70",291.45,PD,1207-0080,0080
North West Leicestershire District Council,31UH,HRAPBS,Housing,HRA Performance & Business Support,Agency Staff,Invoice,1408.75 ,1303030,11/03/2015,A041893,Michael Page International Recruitment Ltd,5786500,"1,690.50",281.75,PD,1207-0080,0080
North West Leicestershire District Council,31UH,HRACS,Housing,HRA Customer Services,Alarm System Telephones,Invoice,1165.00 ,1303319,11/03/2015,A034770,Telecare Services Association,95640,"1,398.00",233.00,PD,5050-0864,0864
North West Leicestershire District Council,31UH,HLBC,Leisure Centres,Hermitage Bar & Catering,Vending Machine Provisions,Invoice,746.72 ,1303533,18/03/2015,A001264,Palmer Harvey Mclane Ltd,3/2408185,885.41,138.69,PD,5501-0752,0752
North West Leicestershire District Council,31UH,FINPLA,Finance,Financial Planning,Shared Revs & Bens Partnership costs,Invoice,209102.69 ,1303652,18/03/2015,A000770,Hinckley & Bosworth Boroug,4000615068,"209,102.69",0.00,PD,1211-0852,0852
North West Leicestershire District Council,31UH,ICT,Information Technology,ICT Services,Machinery & Equipment,Invoice,16800.00 ,1303772,18/03/2015,A030931,Firmstep,1343,"20,160.00","3,360.00",PD,7430-1522,1522
North West Leicestershire District Council,31UH,CHEX,Chief Exec,Chief Executive,External Legal Fees & Advice,Invoice,2275.55 ,1303902,25/03/2015,A041332,Sharp Planning Plus Ltd,14-15.NWLDC.11,"2,275.55",0.00,PD,1301-1900,1900
North West Leicestershire District Council,31UH,SPA,Leisure & Culture,Sport & Physical Activity,Local Sports Alliance,Invoice,438.84 ,1303818,25/03/2015,A041713,Heidi Bruce,1001702,438.84,0.00,PD,0695-1170,1170
North West Leicestershire District Council,31UH,ENOT,Street Management,Environment Transport,Repairs - Parts,Invoice,253.96 ,1303168,18/03/2015,A001445,Scarab Sweepers Limited,318427,304.74,50.78,PD,5846-0533,0533
North West Leicestershire District Council,31UH,ENOP,Street Management,Environment Parks,External Materials,Invoice,4558.36 ,1303225,11/03/2015,A034582,Barcham Tree PLC,100460,"5,470.05",911.69,PD,0390-0741,0741
North West Leicestershire District Council,31UH,SPA,Leisure & Culture,Sport & Physical Activity,Other Miscellaneous Expenses,Invoice,720.00 ,1303430,18/03/2015,A027508,Ibstock Community College,5100406,720.00,0.00,PD,0695-0949,0949
North West Leicestershire District Council,31UH,HPLC,Leisure Centres,Hood Park Leisure Centre,General Repairs,Invoice,400.75 ,1303543,18/03/2015,A000969,J P Lennard Ltd,747623,480.90,80.15,PD,5532-0100,0100
North West Leicestershire District Council,31UH,AUDIT,Finance,Audit Services,Training Expenses,Invoice,290.00 ,1304565,31/03/2015,A027467,CIPFA,3106349,348.00,58.00,PD,1006-0042,0042
North West Leicestershire District Council,31UH,ENOT,Street Management,Environment Transport,Repairs - Parts,Invoice,458.43 ,1303058,11/03/2015,A000625,Ford & Slater Group Ltd,1267009,550.12,91.69,PD,5846-0533,0533
North West Leicestershire District Council,31UH,ESS,Street Management,Environment - Street Scene,Green Footprints Exp,Invoice,545.60 ,1303039,11/03/2015,A039764,EPT SERVICES,12874,654.72,109.12,PD,0920-1027,1027
North West Leicestershire District Council,31UH,ECP,Planning & Development,Environment Community Planning,Professional Fees,Invoice,296.00 ,1303313,11/03/2015,A000329,Chartered Institute Of Housi,586803,296.00,0.00,PD,0935-0048,0048
North West Leicestershire District Council,31UH,LDLS,Legal & Democratic,Legal Services,Agency Staff,Invoice,680.71 ,1303322,11/03/2015,A028530,Venn Group Limited,3038194,816.85,136.14,PD,1017-0080,0080
North West Leicestershire District Council,31UH,ENOT,Street Management,Environment Transport,Repairs - Parts,Invoice,317.37 ,1303459,18/03/2015,A001445,Scarab Sweepers Limited,318519,380.84,63.47,PD,5846-0533,0533
North West Leicestershire District Council,31UH,ENOT,Street Management,Environment Transport,Non Insurance Damage,Invoice,825.00 ,1303465,18/03/2015,A031849,Lee Wells Autobodies Ltd,4297,990.00,165.00,PD,5732-0542,0542
North West Leicestershire District Council,31UH,HRAOPS,Housing,HRA Older Persons Service,Transitional Protection,Invoice,485.28 ,1303717,18/03/2015,A000950,Leicestershire County Council,27500348,485.28,0.00,PD,5090-0740,0740
North West Leicestershire District Council,31UH,PROC,Finance,Procurement,Training Expenses,Invoice,325.00 ,1303069,11/03/2015,A027467,CIPFA,3107251,390.00,65.00,PD,1028-0042,0042
North West Leicestershire District Council,31UH,PROPCL,Property Services,Property Commercial Lettings,General Repairs,Invoice,398.81 ,1303156,11/03/2015,A001092,John Merison BMC,598,478.57,79.76,PD,0050-0100,0100
North West Leicestershire District Council,31UH,ENOP,Street Management,Environment Parks,Operational Equipment - Purchases,Invoice,1838.00 ,1303242,11/03/2015,A028531,TH Heath (Contracts) Ltd,11039,"2,205.60",367.60,PD,0479-0731,0731
North West Leicestershire District Council,31UH,PROPFM,Property Services,Property Facilities Management,Internal Decorations,Invoice,420.25 ,1303314,11/03/2015,A019257,Coalville Decorator Centre Ltd,1176466,504.30,84.05,PD,0210-0101,0101
North West Leicestershire District Council,31UH,ENOT,Street Management,Environment Transport,Purchases,Invoice,805.98 ,1303461,18/03/2015,A035175,Malvern Tyres,26I18457,967.17,161.19,PD,9705-8100,8100
North West Leicestershire District Council,31UH,HPBC,Leisure Centres,Hood Park Bar and Catering,Bar Provisions,Invoice,390.69 ,1303549,18/03/2015,A039915,LWC - Birmingham,4792166,468.84,78.15,PD,5513-0751,0751
North West Leicestershire District Council,31UH,HLBC,Leisure Centres,Hermitage Bar & Catering,Catering Provisions,Invoice,311.82 ,1303512,18/03/2015,A000310,Catering Services (Supplies),668169,333.51,21.69,PD,5501-0750,0750
North West Leicestershire District Council,31UH,HS,Housing Strategy,Community - Housing Strategy,Expenditure against earmarked reserve,Invoice,305.00 ,1303895,25/03/2015,A035272,Solon Security,SH15002398,366.00,61.00,PD,0570-0680,0680
North West Leicestershire District Council,31UH,HPLC,Leisure Centres,Hood Park Leisure Centre,Consumable Cleaning Materials/Hygiene,Invoice,348.38 ,1304277,25/03/2015,A040930,Admiral Cleaning Supplies Ltd,96863,418.06,69.68,PD,5513-0421,0421
North West Leicestershire District Council,31UH,PROPFM,Property Services,Property Facilities Management,Cleaning & Domestic Equipment,Invoice,850.00 ,1303315,11/03/2015,A037981,LTT Vending Limited,23367,"1,020.00",170.00,PD,0210-0704,0704
North West Leicestershire District Council,31UH,ENOT,Street Management,Environment Transport,Protective Clothing,Invoice,256.01 ,1303248,11/03/2015,A039764,EPT SERVICES,12876,288.02,32.01,PD,0280-0770,0770
North West Leicestershire District Council,31UH,ECP,Planning & Development,Environment Community Planning,Green Footprints Exp,Invoice,2744.00 ,1303311,18/03/2015,A031850,Broxap Limited,PRI016561,"3,292.80",548.80,PD,0920-1027,1027
North West Leicestershire District Council,31UH,ENOP,Street Management,Environment Parks,Operational Equipment - Purchases,Invoice,2616.41 ,1303467,18/03/2015,A000671,Glasdon UK Ltd,681692,"3,139.69",523.28,PD,0395-0731,0731
North West Leicestershire District Council,31UH,ENOP,Street Management,Environment Parks,General Repairs,Invoice,332.38 ,1303629,18/03/2015,A000940,Aggregate Industries Uk Ltd,21102010,398.86,66.48,PD,0477-0100,0100
North West Leicestershire District Council,31UH,ENOP,Street Management,Environment Parks,General Repairs,Invoice,430.77 ,1304607,31/03/2015,A000214,Breedon Aggregates England Ltd,Q0701-0021102,516.92,86.15,PD,0477-0100,0100
North West Leicestershire District Council,31UH,FINPLA,Finance,Financial Planning,Interim Support,Invoice,537.50 ,1303333,11/03/2015,A034975,SAM Contracting Ltd,218,645.00,107.50,PD,1003-0079,0079
North West Leicestershire District Council,31UH,ECP,Planning & Development,Environment Community Planning,Green Footprints Exp,Invoice,3564.00 ,1303487,18/03/2015,A031850,Broxap Limited,PRI016570,"4,276.80",712.80,PD,0920-1027,1027
North West Leicestershire District Council,31UH,HPBC,Leisure Centres,Hood Park Bar and Catering,Vending Machine Provisions,Invoice,352.61 ,1303557,18/03/2015,A001264,Palmer Harvey Mclane Ltd,3/2412688,421.45,68.84,PD,5513-0752,0752
North West Leicestershire District Council,31UH,ESS,Street Management,Environment - Street Scene,Operational Equipment - Purchases,Invoice,689.00 ,1303628,18/03/2015,A013366,Highland Painting & Decorating,4700,826.80,137.80,PD,0478-0731,0731
North West Leicestershire District Council,31UH,ENOT,Street Management,Environment Transport,Gas,Invoice,1132.32 ,1303769,18/03/2015,A032686,Calor Gas Limited,26584624,"1,188.94",56.62,PD,5992-0303,0303
North West Leicestershire District Council,31UH,HR,Corporate Director,Human Resources,Interim Support,Invoice,1801.65 ,1303620,18/03/2015,A033121,Libby Carter Limited,LCL/NWLDC92/91,"2,113.65",312.00,PD,1024-0079,0079
North West Leicestershire District Council,31UH,HLBC,Leisure Centres,Hermitage Bar & Catering,Catering Provisions,Invoice,662.19 ,1304508,31/03/2015,A001264,Palmer Harvey Mclane Ltd,3/2412679,784.05,121.86,PD,5501-0750,0750
North West Leicestershire District Council,31UH,PROPCL,Property Services,Property Commercial Lettings,Consumable Cleaning Materials/Hygiene,Invoice,296.55 ,1303439,18/03/2015,A003037,Coalville Cleaning Services,17753,355.86,59.31,PD,0044-0421,0421
North West Leicestershire District Council,31UH,ESS,Street Management,Environment - Street Scene,Stationery,Invoice,520.00 ,1303463,18/03/2015,A035478,Nagels UK Limited,222166,624.00,104.00,PD,0141-0783,0783
North West Leicestershire District Council,31UH,ICT,Information Technology,ICT Services,Administrative Equipment,Invoice,722.00 ,1303466,18/03/2015,A025151,Probrand Limited,OP/I502649,866.40,144.40,PD,1011-0700,0700
North West Leicestershire District Council,31UH,HLC,Leisure Centres,Hermitage Leisure Centre,Water Treatment,Invoice,437.98 ,1303443,18/03/2015,A001591,Stowlin Ltd,OLSI/84866,525.58,87.60,PD,5501-0151,0151
North West Leicestershire District Council,31UH,HRAPBS,Housing,HRA Performance & Business Support,Tenants Scrutiny Panel,Invoice,740.00 ,1303531,18/03/2015,A030740,Priority Estates Project Limited,1018899,888.00,148.00,PD,5080-0939,0939
North West Leicestershire District Council,31UH,ICT,Information Technology,ICT Services,Admin Equipment - Purchased & Recharged,Invoice,432.00 ,1303541,18/03/2015,A036738,Viglen Limited,2358408,518.40,86.40,PD,1011-0698,0698
North West Leicestershire District Council,31UH,HPLC,Leisure Centres,Hood Park Leisure Centre,Operational Equipment,Invoice,366.14 ,1304561,31/03/2015,A034390,ENER.G Combined Power Ltd,14502797,439.37,73.23,PD,5513-0710,0710
North West Leicestershire District Council,31UH,CHEX,Chief Exec,Chief Executive,Interim Support,Invoice,1762.00 ,1304632,31/03/2015,A040743,Janice Milsom,SG-03/15,"1,762.00",0.00,PD,1510-0079,0079
North West Leicestershire District Council,31UH,ENOP,Street Management,Environment Parks,External Materials,Invoice,926.00 ,1304678,31/03/2015,A001392,Rigby Taylor Limited,RSIN0132054,"1,111.20",185.20,PD,0390-0741,0741
North West Leicestershire District Council,31UH,HRAPBS,Housing,HRA Performance & Business Support,Training Expenses,Invoice,495.00 ,1304602,31/03/2015,A007983,HQN Ltd,PSNET05724,594.00,99.00,PD,5085-0042,0042
North West Leicestershire District Council,31UH,ENOT,Street Management,Environment Transport,Hire Of Operational Equipment,Invoice,8050.00 ,1304633,31/03/2015,A002693,Leicestershire County Counc,28180220,"9,660.00","1,610.00",PD,0280-0733,0733
North West Leicestershire District Council,31UH,HRAOPS,Housing,HRA Older Persons Service,Operational Equipment - Purchases,Invoice,749.40 ,1304676,31/03/2015,A001701,Tunstall Healthcare (UK) Limited,3IN/10259452,899.28,149.88,PD,5050-0867,0867
North West Leicestershire District Council,31UH,HR,Corporate Director,Human Resources,Childcare Vouchers,Invoice,492.75 ,1304948,31/03/2015,A038606,Premier Employer Solutions Limited,11682,591.30,98.55,PD,9704-8100,8100
North West Leicestershire District Council,31UH,PROPCL,Property Services,Property Commercial Lettings,General Repairs,Invoice,332.52 ,1304653,31/03/2015,A001092,John Merison BMC,646,399.02,66.50,PD,0044-0100,0100
North West Leicestershire District Council,31UH,PROPFM,Property Services,Property Facilities Management,Building Security,Invoice,465.00 ,1304681,31/03/2015,A013049,Regarde Security Ltd,4971,558.00,93.00,PD,0210-0384,0384
North West Leicestershire District Council,31UH,HPLC,Leisure Centres,Hood Park Leisure Centre,Equipment For Resale,Invoice,360.72 ,1303182,11/03/2015,A001833,Zoggs International Ltd,I-0289183,369.36,8.64,PD,5501-0706,0706
North West Leicestershire District Council,31UH,HLC,Leisure Centres,Hermitage Leisure Centre,Maintenance/Office Expenditure,Invoice,261.80 ,1299703,18/03/2015,A000968,Leisureteq,40090,314.16,52.36,PD,5501-0118,0118
North West Leicestershire District Council,31UH,EDC,Planning & Development,Environment - Development Control,Advertising,Invoice,552.31 ,1302710,04/03/2015,A001395,Euro RSCG People T/A Havas People Ltd,562827,662.67,110.36,PD,0915-0941,0941
North West Leicestershire District Council,31UH,EDC,Planning & Development,Environment - Development Control,Advertising,Invoice,659.27 ,1302711,04/03/2015,A001395,Euro RSCG People T/A Havas People Ltd,562826,791.00,131.73,PD,0915-0941,0941
North West Leicestershire District Council,31UH,EDC,Planning & Development,Environment - Development Control,Advertising,Invoice,324.89 ,1302712,04/03/2015,A001395,Euro RSCG People T/A Havas People Ltd,562552,389.81,64.92,PD,0915-0941,0941
North West Leicestershire District Council,31UH,EDC,Planning & Development,Environment - Development Control,Advertising,Invoice,310.73 ,1302714,04/03/2015,A001395,Euro RSCG People T/A Havas People Ltd,562388,372.82,62.09,PD,0915-0941,0941
North West Leicestershire District Council,31UH,EDC,Planning & Development,Environment - Development Control,Advertising,Invoice,496.33 ,1302715,04/03/2015,A001395,Euro RSCG People T/A Havas People Ltd,562553,595.50,99.17,PD,0915-0941,0941
North West Leicestershire District Council,31UH,EDC,Planning & Development,Environment - Development Control,Advertising,Invoice,577.80 ,1302716,04/03/2015,A001395,Euro RSCG People T/A Havas People Ltd,562386,693.25,115.45,PD,0915-0941,0941
North West Leicestershire District Council,31UH,ENOT,Street Management,Environment Transport,Repairs - Parts,Invoice,284.17 ,1303123,11/03/2015,A001131,Mobile Hydraulics Ltd,9386,341.01,56.84,PD,5888-0533,0533
North West Leicestershire District Council,31UH,SPA,Leisure & Culture,Sport & Physical Activity,Local Sports Alliance,Invoice,32489.50 ,1301842,04/03/2015,A029490,King Edward VII Science & Sport,KEVII001211,"32,489.50",0.00,PD,0695-1171,1171
North West Leicestershire District Council,31UH,ENOT,Street Management,Environment Transport,Repairs - Parts,Invoice,305.51 ,1303118,11/03/2015,A001131,Mobile Hydraulics Ltd,9397,366.61,61.10,PD,5972-0533,0533
North West Leicestershire District Council,31UH,HPLC,Leisure Centres,Hood Park Leisure Centre,General Repairs,Invoice,250.00 ,1300792,04/03/2015,A041815,Dura-Sport (Leisure Care) Ltd,2549,300.00,50.00,PD,5532-0100,0100
North West Leicestershire District Council,31UH,PROPFM,Property Services,Property Facilities Management,Legal & Professional Services,Invoice,1500.00 ,1302854,04/03/2015,A036009,Turnkey Design Partnership Limited,F8582-T3784,"1,800.00",300.00,PD,7464-0800,0800
North West Leicestershire District Council,31UH,HLBC,Leisure Centres,Hermitage Bar & Catering,Catering & Bar Equipment,Invoice,625.65 ,1303004,11/03/2015,A036676,Shires Event Hire,6280,750.78,125.13,PD,5501-0702,0702
North West Leicestershire District Council,31UH,ECP,Planning & Development,Environment Community Planning,Green Footprints Exp,Invoice,550.00 ,1301291,18/03/2015,A031850,Broxap Limited,PRI016342,660.00,110.00,PD,0920-1027,1027
North West Leicestershire District Council,31UH,HR,Corporate Director,Human Resources,Medical Fees,Invoice,510.00 ,1303659,18/03/2015,A038840,Health Management Ltd,125934,612.00,102.00,PD,1126-0049,0049
North West Leicestershire District Council,31UH,HLC,Leisure Centres,Hermitage Leisure Centre,Recreational Equipment,Invoice,705.00 ,1303188,11/03/2015,A027592,Chameleon Pro Audio T/A Lux Technical Lt,LT2701-14,846.00,141.00,PD,5501-0701,0701
North West Leicestershire District Council,31UH,ENOP,Street Management,Environment Parks,Operational Equipment - Purchases,Invoice,276.00 ,1301392,11/03/2015,A000958,ESPO,1879322,331.20,55.20,PD,0390-0731,0731
North West Leicestershire District Council,31UH,HS,Housing Strategy,Community - Housing Strategy,Other Services,Invoice,1700.16 ,1303360,11/03/2015,A010779,Primrose Hotels Ltd T/A Hermitage Park H,43829,"2,040.00",339.84,PD,0570-0803,0803
North West Leicestershire District Council,31UH,HRAPBS,Housing,HRA Performance & Business Support,Agency Staff,Invoice,1192.50 ,1302695,04/03/2015,A041893,Michael Page International Recruitment Ltd,5774025,"1,431.00",238.50,PD,1207-0080,0080
North West Leicestershire District Council,31UH,ENOP,Street Management,Environment Parks,External Materials,Invoice,311.30 ,1303249,11/03/2015,A013933,Grangewood Fencing Supplies Limited,620701,373.56,62.26,PD,0390-0741,0741
North West Leicestershire District Council,31UH,HRAHM,Housing,HRA Housing Management,Training Expenses,Invoice,350.00 ,1301702,18/03/2015,A002968,Capita Business Services Ltd,INV-24786,420.00,70.00,PD,1203-0042,0042
North West Leicestershire District Council,31UH,HPLC,Leisure Centres,Hood Park Leisure Centre,Water Treatment,Invoice,1078.90 ,1303548,18/03/2015,A001591,Stowlin Ltd,OLSI/84154,"1,294.68",215.78,PD,5513-0151,0151
North West Leicestershire District Council,31UH,HRAHM,Housing,HRA Housing Management,Professional Fees,Invoice,296.00 ,1302076,04/03/2015,A000329,Chartered Institute Of Housi,578141,296.00,0.00,PD,12080048,0048
North West Leicestershire District Council,31UH,HR,Corporate Director,Human Resources,Expenditure against earmarked reserve,Invoice,10166.00 ,1303660,18/03/2015,A042094,Internal Alignment,IA1502,"12,199.20","2,033.20",PD,1024-0680,0680
North West Leicestershire District Council,31UH,HRAHM,Housing,HRA Housing Management,Legal & Professional Services,Invoice,600.00 ,1302791,31/03/2015,A041734,AIM Mediation Ltd,3742,600.00,0.00,PD,5030-0800,0800
North West Leicestershire District Council,31UH,HPLC,Leisure Centres,Hood Park Leisure Centre,General Repairs,Invoice,305.50 ,1303180,11/03/2015,A000021,ADT Fire And Security,2877765-41,366.60,61.10,PD,5513-0100,0100
North West Leicestershire District Council,31UH,HR,Corporate Director,Human Resources,Interim Support,Invoice,1797.60 ,1303493,18/03/2015,A033121,Libby Carter Limited,LCL/NWLDC91/90,"2,109.60",312.00,PD,1024-0079,0079
North West Leicestershire District Council,31UH,HLBC,Leisure Centres,Hermitage Bar & Catering,Catering Provisions,Invoice,309.83 ,1303532,18/03/2015,A001264,Palmer Harvey Mclane Ltd,3/2395162,363.44,53.61,PD,5501-0750,0750
North West Leicestershire District Council,31UH,HRAOPS,Housing,HRA Older Persons Service,Transitional Protection,Invoice,485.28 ,1303718,18/03/2015,A000950,Leicestershire County Council,27500339,485.28,0.00,PD,5090-0740,0740
North West Leicestershire District Council,31UH,HS,Housing Strategy,Community - Housing Strategy,Other Services,Invoice,6099.00 ,1304288,25/03/2015,A033400,Housing Partners Ltd,15363,"7,318.80","1,219.80",PD,0570-0803,0803
North West Leicestershire District Council,31UH,HLC,Leisure Centres,Hermitage Leisure Centre,Equipment For Hire,Invoice,882.00 ,1303187,11/03/2015,A011490,JB Tool Hire Ltd,24679,975.60,93.60,PD,5501-0705,0705
North West Leicestershire District Council,31UH,ENOP,Street Management,Environment Parks,Operational Equipment - Purchases,Invoice,1124.00 ,1303770,18/03/2015,A033258,R Massey & Son (Woodville) Ltd,5355031,"1,348.80",224.80,PD,0451-0731,0731
North West Leicestershire District Council,31UH,FINPLA,Finance,Financial Planning,Shared Revs & Bens Partnership costs,Invoice,38879.00 ,1303859,25/03/2015,A000770,Hinckley & Bosworth Boroug,4000613604,"38,879.00",0.00,PD,1211-0852,0852
North West Leicestershire District Council,31UH,HPLC,Leisure Centres,Hood Park Leisure Centre,General Repairs,Invoice,300.00 ,1302832,04/03/2015,A041815,Dura-Sport (Leisure Care) Ltd,2567,360.00,60.00,PD,5532-0100,0100
North West Leicestershire District Council,31UH,HPBC,Leisure Centres,Hood Park Bar and Catering,Bar Provisions,Invoice,367.23 ,1302836,04/03/2015,A039915,LWC - Birmingham,4768567,440.68,73.45,PD,5513-0751,0751
North West Leicestershire District Council,31UH,PROPCL,Property Services,Property Commercial Lettings,General Repairs,Invoice,5063.00 ,1301785,11/03/2015,A030887,T Denman & Sons (Melton Mowbray) Ltd,IN1574,"6,075.60","1,012.60",PD,0044-0100,0100
North West Leicestershire District Council,31UH,HLBC,Leisure Centres,Hermitage Bar & Catering,Bar Provisions,Invoice,357.40 ,1303198,11/03/2015,A039915,LWC - Birmingham,4769956,428.88,71.48,PD,5501-0751,0751
North West Leicestershire District Council,31UH,HLBC,Leisure Centres,Hermitage Bar & Catering,Catering Provisions,Invoice,277.02 ,1302770,04/03/2015,A039841,P & H Direct Van Sales,UEI09200,332.44,55.42,PD,5501-0750,0750
North West Leicestershire District Council,31UH,PROPCL,Property Services,Property Commercial Lettings,General Repairs,Invoice,583.20 ,1303011,11/03/2015,A030887,T Denman & Sons (Melton Mowbray) Ltd,IN1576,699.84,116.64,PD,0044-0100,0100
North West Leicestershire District Council,31UH,HRAPBS,Housing,HRA Performance & Business Support,Tree Officer,Invoice,11894.68 ,1303031,11/03/2015,A000770,Hinckley & Bosworth Boroug,4000613950,"14,273.62","2,378.94",PD,5050-1116,1116
North West Leicestershire District Council,31UH,CHEX,Chief Exec,Chief Executive,Interim Support,Invoice,5204.67 ,1303630,18/03/2015,A000251,Browne Jacobson,287065,"6,245.60","1,040.93",PD,1510-0079,0079
North West Leicestershire District Council,31UH,PROPFM,Property Services,Property Facilities Management,Health & Safety Repairs/Maintenance,Invoice,594.60 ,1303661,18/03/2015,A030887,T Denman & Sons (Melton Mowbray) Ltd,IN1577,713.52,118.92,PD,0700-0113,0113
North West Leicestershire District Council,31UH,ENOP,Street Management,Environment Parks,Free Tree Scheme,Invoice,1306.56 ,1302123,04/03/2015,A029800,R & N Plant Specialists,6440,"1,567.87",261.31,PD,0935-1936,1936
North West Leicestershire District Council,31UH,ENOP,Street Management,Environment Parks,Operational Equipment - Purchases,Invoice,441.84 ,1302705,04/03/2015,A030090,Aitkens Sportsturf Ltd,1218,530.21,88.37,PD,0390-0731,0731
North West Leicestershire District Council,31UH,ENOP,Street Management,Environment Parks,General Repairs,Invoice,500.00 ,1302849,04/03/2015,A001653,Theobalds Timber,194893,600.00,100.00,PD,0477-0100,0100
North West Leicestershire District Council,31UH,HLBC,Leisure Centres,Hermitage Bar & Catering,Catering Provisions,Invoice,402.88 ,1303534,18/03/2015,A001264,Palmer Harvey Mclane Ltd,3/2399553,481.73,78.85,PD,5501-0750,0750
North West Leicestershire District Council,31UH,HLBC,Leisure Centres,Hermitage Bar & Catering,Equipment Operating Leases,Invoice,617.76 ,1303005,11/03/2015,A029510,Siemens Financial Services Ltd,244/15/0116614,741.31,123.55,PD,5501-0716,0716
North West Leicestershire District Council,31UH,ENOT,Street Management,Environment Transport,Purchases,Invoice,468.90 ,1302730,04/03/2015,A037391,Emo Oil Limited,4005199,492.35,23.45,PD,9701-8100,8100
North West Leicestershire District Council,31UH,ICT,Information Technology,ICT Services,Admin Equipment - Maintenance,Invoice,682.00 ,1302754,04/03/2015,A000470,Dell Computer Corporation L,7402187080,818.40,136.40,PD,1011-0696,0696
North West Leicestershire District Council,31UH,ENOWM,Street Management,Environment Waste Management,Training Expenses,Invoice,828.00 ,1302083,04/03/2015,A018837,Apse,1415/1970,993.60,165.60,PD,1124-0042,0042
North West Leicestershire District Council,31UH,FINPLA,Finance,Financial Planning,Audit Commision Fees,Invoice,20683.00 ,1302961,04/03/2015,A035156,KPMG LLP,5500979270,"24,819.60","4,136.60",PD,0843-0820,0820
North West Leicestershire District Council,31UH,HLBC,Leisure Centres,Hermitage Bar & Catering,Catering Provisions,Invoice,409.85 ,1303877,25/03/2015,A039841,P & H Direct Van Sales,UEI09442,491.85,82.00,PD,5501-0750,0750
North West Leicestershire District Council,31UH,HLC,Leisure Centres,Hermitage Leisure Centre,Measham LC Lifestyle DD,Invoice,2461.63 ,1303878,25/03/2015,A027454,Measham Leisure Centre,15-Feb,"2,953.95",492.32,PD,5501-1142,1142
North West Leicestershire District Council,31UH,ENOWM,Street Management,Environment Waste Management,General Repairs,Invoice,290.00 ,1304454,25/03/2015,A002076,Wasteline Services Limited,39420,348.00,58.00,PD,0477-0100,0100
North West Leicestershire District Council,31UH,HRAPBS,Housing,HRA Performance & Business Support,Agency Staff,Invoice,1417.50 ,1303528,31/03/2015,A041893,Michael Page International Recruitment Ltd,5791552,"1,701.00",283.50,PD,1207-0080,0080
North West Leicestershire District Council,31UH,HRAPBS,Housing,HRA Performance & Business Support,Agency Staff,Invoice,1507.50 ,1303529,31/03/2015,A041893,Michael Page International Recruitment Ltd,5791551,"1,809.00",301.50,PD,1207-0080,0080
North West Leicestershire District Council,31UH,ESS,Street Management,Environment - Street Scene,Subscriptions,Invoice,1500.00 ,1303648,31/03/2015,A000478,Derby City Council,1287253,"1,800.00",300.00,PD,1126-0901,0901
North West Leicestershire District Council,31UH,HR,Corporate Director,Human Resources,Purchases,Invoice,4380.00 ,1303470,18/03/2015,A035521,PES Limited,OR0540,"4,380.00",0.00,PD,9704-8100,8100
North West Leicestershire District Council,31UH,ENOT,Street Management,Environment Transport,Repairs - Parts,Invoice,409.52 ,1303479,18/03/2015,A000625,Ford & Slater Group Ltd,1267446,491.42,81.90,PD,5876-0533,0533
North West Leicestershire District Council,31UH,PROPFM,Property Services,Property Facilities Management,General Repairs,Invoice,887.36 ,1303497,18/03/2015,A001092,John Merison BMC,607,"1,064.83",177.47,PD,0210-0100,0100
North West Leicestershire District Council,31UH,ESS,Street Management,Environment - Street Scene,Stationery,Invoice,1907.20 ,1303469,18/03/2015,A035478,Nagels UK Limited,222170,"2,288.64",381.44,PD,0141-0783,0783
North West Leicestershire District Council,31UH,EPP,Planning & Development,Environment Planning Policy,Local Development Framework,Invoice,1938.00 ,1303622,18/03/2015,A041786,Infrastructure & Environment UK Ltd,6209588,"2,325.60",387.60,PD,0925-1912,1912
North West Leicestershire District Council,31UH,LDLS,Legal & Democratic,Legal Services,Agency Staff,Invoice,973.94 ,1303631,18/03/2015,A028530,Venn Group Limited,3040616,"1,168.73",194.79,PD,1017-0080,0080
North West Leicestershire District Council,31UH,EDC,Planning & Development,Environment - Development Control,Service Management - Support Services,Invoice,550.00 ,1303637,18/03/2015,A002296,Covergold Limited,155361,660.00,110.00,PD,0915-1330,1330
North West Leicestershire District Council,31UH,ENOT,Street Management,Environment Transport,Operational Equipment - Rep & Maint,Invoice,295.00 ,1303789,18/03/2015,A031879,Maha UK Limited,SVS/90019196,354.00,59.00,PD,5992-0732,0732
North West Leicestershire District Council,31UH,ESS,Street Management,Environment - Street Scene,Subscriptions,Invoice,3000.00 ,1303473,25/03/2015,A037505,RH Environmental Limited,11821,"3,600.00",600.00,PD,1126-0901,0901
North West Leicestershire District Council,31UH,HRAPBS,Housing,HRA Performance & Business Support,Expenditure against earmarked reserve,Invoice,1900.00 ,1303474,31/03/2015,A041321,Oneserve Ltd,780,"2,280.00",380.00,PD,1203-0680,0680
North West Leicestershire District Council,31UH,ICT,Information Technology,ICT Services,Admin Equipment - Purchased & Recharged,Invoice,698.00 ,1304608,31/03/2015,A018592,Orange Plc,124608701,837.60,139.60,PD,1011-0698,0698
North West Leicestershire District Council,31UH,HR,Corporate Director,Human Resources,Stationery,Invoice,356.50 ,1303535,18/03/2015,A002190,Spectra Security Limited,215/3533,427.80,71.30,PD,1024-0783,0783
North West Leicestershire District Council,31UH,ENOT,Street Management,Environment Transport,Operational Equipment - Rep & Maint,Invoice,599.00 ,1303636,18/03/2015,A031879,Maha UK Limited,SLS/20017258,718.80,119.80,PD,5992-0732,0732
North West Leicestershire District Council,31UH,HLBC,Leisure Centres,Hermitage Bar & Catering,Bar Provisions,Invoice,751.66 ,1303876,25/03/2015,A039915,LWC - Birmingham,4801871,901.98,150.32,PD,5501-0751,0751
North West Leicestershire District Council,31UH,PROPFM,Property Services,Property Facilities Management,Cleaning & Domestic Equipment,Invoice,707.03 ,1303634,25/03/2015,A015996,Admiral Cleaning Supplies Ltd,98442,848.44,141.41,PD,0210-0704,0704
North West Leicestershire District Council,31UH,ENOT,Street Management,Environment Transport,Fuel,Invoice,16325.41 ,1303822,25/03/2015,A040946,Hall Fuels (Division of Watson Petroleum,I07470480,"19,590.49","3,265.08",PD,9702-8100,8100
North West Leicestershire District Council,31UH,HPBC,Leisure Centres,Hood Park Bar and Catering,Bar Provisions,Invoice,274.05 ,1304280,25/03/2015,A039915,LWC - Birmingham,4800194,328.87,54.82,PD,5513-0751,0751
North West Leicestershire District Council,31UH,HRAPBS,Housing,HRA Performance & Business Support,Agency Staff,Invoice,2452.50 ,1303527,31/03/2015,A041893,Michael Page International Recruitment Ltd,5792330,"2,943.00",490.50,PD,1207-0080,0080
North West Leicestershire District Council,31UH,HRAPBS,Housing,HRA Performance & Business Support,Legal & Professional Services,Invoice,5174.00 ,1303632,18/03/2015,A035828,The Energy Saving Trust Limited,SINGENL 952,"6,208.80","1,034.80",PD,5025-0800,0800
North West Leicestershire District Council,31UH,ENOT,Street Management,Environment Transport,Transport Costs - Tyres,Invoice,255.00 ,1303726,18/03/2015,A034071,S & B Tyres Limited,10875,306.00,51.00,PD,5991-0523,0523
North West Leicestershire District Council,31UH,PROPFM,Property Services,Property Facilities Management,Catering Provisions,Invoice,356.30 ,1303560,18/03/2015,A037981,LTT Vending Limited,23582,356.30,0.00,PD,0210-0750,0750
North West Leicestershire District Council,31UH,ENOT,Street Management,Environment Transport,Operational Equipment,Invoice,1334.64 ,1303845,25/03/2015,A000438,Cuckoo Gap Limited,1000895,"1,601.57",266.93,PD,0370-0710,0710
North West Leicestershire District Council,31UH,HLC,Leisure Centres,Hermitage Leisure Centre,Operational Equipment,Invoice,515.00 ,1303881,25/03/2015,A036676,Shires Event Hire,6371,618.00,103.00,PD,5501-0710,0710
North West Leicestershire District Council,31UH,ICT,Information Technology,ICT Services,Admin Equipment - Maintenance,Invoice,350.00 ,1303722,25/03/2015,A001298,Phoenix Software Limited,OP/I748770,420.00,70.00,PD,1011-0696,0696
North West Leicestershire District Council,31UH,ENOP,Street Management,Environment Parks,Operational Equipment - Purchases,Invoice,428.88 ,1303821,25/03/2015,A038742,Secure-a-field,3821,514.66,85.78,PD,0395-0731,0731
North West Leicestershire District Council,31UH,ENOT,Street Management,Environment Transport,Fuel,Invoice,605.92 ,1303898,25/03/2015,A037391,Emo Oil Limited,4172949,636.22,30.30,PD,9701-8100,8100
North West Leicestershire District Council,31UH,ICT,Information Technology,ICT Services,Corporate PC Purchases,Invoice,4582.08 ,1303721,31/03/2015,A034753,ANS Group Plc,1001095,"5,498.50",916.42,PD,1011-0736,0736
North West Leicestershire District Council,31UH,FINPLA,Finance,Financial Planning,Interim Support,Invoice,526.75 ,1303786,18/03/2015,A034975,SAM Contracting Ltd,219,632.10,105.35,PD,1003-0079,0079
North West Leicestershire District Council,31UH,NACCS,Neighbourhoods & Communities,N & C Community Safety,Expenditure against earmarked reserve,Invoice,1800.00 ,1303809,25/03/2015,A040188,Personal Development Point,350,"2,160.00",360.00,PD,0935-0680,0680
North West Leicestershire District Council,31UH,PROPFM,Property Services,Property Facilities Management,Administrative Equipment,Invoice,362.49 ,1303839,25/03/2015,A040690,ACE Environmental Engineering Ltd,129890,434.99,72.50,PD,1011-0700,0700
North West Leicestershire District Council,31UH,HRAPBS,Housing,HRA Performance & Business Support,Agency Staff,Invoice,877.50 ,1303712,31/03/2015,A041893,Michael Page International Recruitment Ltd,5793501,"1,053.00",175.50,PD,1203-0080,0080
North West Leicestershire District Council,31UH,HRAPBS,Housing,HRA Performance & Business Support,Agency Staff,Invoice,1245.00 ,1303713,31/03/2015,A041893,Michael Page International Recruitment Ltd,5793391,"1,494.00",249.00,PD,1207-0080,0080
North West Leicestershire District Council,31UH,HRAPBS,Housing,HRA Performance & Business Support,Agency Staff,Invoice,1490.75 ,1303714,31/03/2015,A041893,Michael Page International Recruitment Ltd,5793778,"1,788.90",298.15,PD,1207-0080,0080
North West Leicestershire District Council,31UH,HRAPBS,Housing,HRA Performance & Business Support,Agency Staff,Invoice,1487.50 ,1303715,31/03/2015,A041893,Michael Page International Recruitment Ltd,5793779,"1,785.00",297.50,PD,1207-0080,0080
North West Leicestershire District Council,31UH,PROPFM,Property Services,Property Facilities Management,Cleaning & Domestic Equipment,Invoice,383.76 ,1304559,31/03/2015,A000958,ESPO,1943644,460.50,76.74,PD,0210-0704,0704
North West Leicestershire District Council,31UH,PROPFM,Property Services,Property Facilities Management,Cleaning & Domestic Equipment,Invoice,370.47 ,1304548,31/03/2015,A000958,ESPO,1943641,444.58,74.11,PD,0210-0704,0704
North West Leicestershire District Council,31UH,HLBC,Leisure Centres,Hermitage Bar & Catering,Catering Provisions,Invoice,345.77 ,1304980,31/03/2015,A001264,Palmer Harvey Mclane Ltd,3/2416400,413.21,67.44,PD,5501-0750,0750
North West Leicestershire District Council,31UH,EBC,Planning & Development,Building Control,Fees - L.C.C.,Invoice,2401.00 ,1304375,25/03/2015,A027423,Leicestershire County Council,25721187,"2,401.00",0.00,PD,0870-0842,0842
North West Leicestershire District Council,31UH,ENOT,Street Management,Environment Transport,Contract Payments (Other) Ext,Invoice,4150.00 ,1304480,31/03/2015,A033202,Poundfield Products Ltd,11820,"4,980.00",830.00,PD,7461-1511,1511
North West Leicestershire District Council,31UH,HS,Housing Strategy,Community - Housing Strategy,Other Services,Invoice,5859.00 ,1304527,31/03/2015,A000180,Blaby District Council,N0002215,"7,030.80","1,171.80",PD,0570-0803,0803
North West Leicestershire District Council,31UH,ICT,Information Technology,ICT Services,Other Miscellaneous Expenses,Invoice,1521.90 ,1304534,31/03/2015,A021505,Insight Uk,2287062,"1,826.28",304.38,PD,1207-0949,0949
North West Leicestershire District Council,31UH,ICT,Information Technology,ICT Services,Administrative Equipment,Invoice,3450.00 ,1303899,31/03/2015,A001298,Phoenix Software Limited,OP/I749051,"4,140.00",690.00,PD,1011-0700,0700
North West Leicestershire District Council,31UH,ENOP,Street Management,Environment Parks,General Repairs,Invoice,300.00 ,1303896,25/03/2015,A032637,Buckley Turf & Landscapes,150 SQ YDS TURF,300.00,0.00,PD,0451-0100,0100
North West Leicestershire District Council,31UH,ENOT,Street Management,Environment Transport,Contract Payments (Other) Ext,Invoice,32710.00 ,1303846,25/03/2015,A034613,Clovis Lande Associates Ltd,147928,"39,252.00","6,542.00",PD,7461-1511,1511
North West Leicestershire District Council,31UH,PROPCL,Property Services,Property Commercial Lettings,General Repairs,Invoice,260.77 ,1304376,25/03/2015,A033342,J Tomlinson Ltd,602524,312.92,52.15,PD,5030-0100,0100
North West Leicestershire District Council,31UH,ICT,Information Technology,ICT Services,Consumable Materials,Invoice,354.79 ,1304345,25/03/2015,A038178,Antalis Limited,4633482,425.75,70.96,PD,0837-0722,0722
North West Leicestershire District Council,31UH,LDLS,Legal & Democratic,Legal Services,Agency Staff,Invoice,733.08 ,1304347,25/03/2015,A028530,Venn Group Limited,3042925,879.70,146.62,PD,1017-0080,0080
North West Leicestershire District Council,31UH,ENOT,Street Management,Environment Transport,Clothing Supplies,Invoice,547.48 ,1303855,25/03/2015,A009933,Westbury Industrial Supplies,24989,656.98,109.50,PD,9705-8100,8100
North West Leicestershire District Council,31UH,PROPFM,Property Services,Property Facilities Management,Health & Safety Repairs/Maintenance,Invoice,372.60 ,1303905,25/03/2015,A030887,T Denman & Sons (Melton Mowbray) Ltd,IN1666,447.12,74.52,PD,0700-0113,0113
North West Leicestershire District Council,31UH,PROPFM,Property Services,Property Facilities Management,General Repairs,Invoice,4241.00 ,1304381,25/03/2015,A033342,J Tomlinson Ltd,602552,"5,089.20",848.20,PD,9296-8100,8100
North West Leicestershire District Council,31UH,ENOT,Street Management,Environment Transport,Repairs - Parts,Invoice,760.16 ,1304482,31/03/2015,A035120,Sherwood Truck and Van Limited,33119988,912.19,152.03,PD,5887-0533,0533
North West Leicestershire District Council,31UH,ENOT,Street Management,Environment Transport,Repairs - Parts,Invoice,270.70 ,1304504,31/03/2015,A035120,Sherwood Truck and Van Limited,33119961,324.84,54.14,PD,5887-0533,0533
North West Leicestershire District Council,31UH,HLBC,Leisure Centres,Hermitage Bar & Catering,Catering Provisions,Invoice,318.30 ,1304475,31/03/2015,A039915,LWC - Birmingham,4810142,381.96,63.66,PD,5501-0750,0750
North West Leicestershire District Council,31UH,ICT,Information Technology,ICT Services,Alarm System Telephones,Invoice,900.00 ,1304326,31/03/2015,A001701,Tunstall Healthcare (UK) Limited,50278502,"1,080.00",180.00,PD,5050-0864,0864
North West Leicestershire District Council,31UH,EEHL,Environmental Health,Environmental Health & Licensing,Agency Staff,Invoice,1036.00 ,1304307,25/03/2015,A031571,HBHC Synergy Ltd,SY154964,"1,243.20",207.20,PD,0320-0080,0080
North West Leicestershire District Council,31UH,ENOT,Street Management,Environment Transport,Repairs - Parts,Invoice,417.57 ,1304348,25/03/2015,A036178,Taylor Engineering & Fabrications Ltd,19162,501.08,83.51,PD,5891-0533,0533
North West Leicestershire District Council,31UH,ENOP,Street Management,Environment Parks,General Repairs,Invoice,319.96 ,1304526,31/03/2015,A008325,Palmar & Associates Ltd,7880,383.95,63.99,PD,0453-0100,0100
North West Leicestershire District Council,31UH,EDC,Planning & Development,Environment - Development Control,Advertising,Invoice,781.37 ,1304568,31/03/2015,A001395,Euro RSCG People T/A Havas People Ltd,564450,937.50,156.13,PD,0915-0941,0941
North West Leicestershire District Council,31UH,EDC,Planning & Development,Environment - Development Control,Advertising,Invoice,348.45 ,1304569,31/03/2015,A001395,Euro RSCG People T/A Havas People Ltd,564753,418.08,69.63,PD,0915-0941,0941
North West Leicestershire District Council,31UH,EDC,Planning & Development,Environment - Development Control,Advertising,Invoice,328.92 ,1304570,31/03/2015,A001395,Euro RSCG People T/A Havas People Ltd,564451,394.65,65.73,PD,0915-0941,0941
North West Leicestershire District Council,31UH,EDC,Planning & Development,Environment - Development Control,Advertising,Invoice,430.68 ,1304599,31/03/2015,A001395,Euro RSCG People T/A Havas People Ltd,564967,516.74,86.06,PD,0915-0941,0941
North West Leicestershire District Council,31UH,PROPCL,Property Services,Property Commercial Lettings,Contract Cleaning,Invoice,1130.13 ,1304350,25/03/2015,A001136,Moira Furnace Museum Trust,CLEANING,"1,130.13",0.00,PD,0047-0420,0420
North West Leicestershire District Council,31UH,HRAPBS,Housing,HRA Performance & Business Support,Agency Staff,Invoice,1490.75 ,1304629,31/03/2015,A041893,Michael Page International Recruitment Ltd,5797398,"1,788.90",298.15,PD,1207-0080,0080
North West Leicestershire District Council,31UH,HRAPBS,Housing,HRA Performance & Business Support,Agency Staff,Invoice,1192.50 ,1304630,31/03/2015,A041893,Michael Page International Recruitment Ltd,5797397,"1,431.00",238.50,PD,1207-0080,0080
North West Leicestershire District Council,31UH,HRAPBS,Housing,HRA Performance & Business Support,Agency Staff,Invoice,1277.50 ,1304631,31/03/2015,A041893,Michael Page International Recruitment Ltd,5797904,"1,533.00",255.50,PD,1207-0080,0080
North West Leicestershire District Council,31UH,PROPFM,Property Services,Property Facilities Management,General Repairs,Invoice,254.10 ,1304487,31/03/2015,A001092,John Merison BMC,639,304.92,50.82,PD,0210-0100,0100
North West Leicestershire District Council,31UH,ENOP,Street Management,Environment Parks,General Repairs,Invoice,2600.00 ,1304488,31/03/2015,A041200,Kilworth Machinery Ltd,22670,"3,120.00",520.00,PD,0477-0100,0100
North West Leicestershire District Council,31UH,ENOP,Street Management,Environment Parks,General Repairs,Invoice,530.00 ,1304547,31/03/2015,A040848,Gilvar Lining Ltd,38961,636.00,106.00,PD,0477-0100,0100
North West Leicestershire District Council,31UH,HS,Housing Strategy,Community - Housing Strategy,Other Services,Invoice,490.00 ,1304675,31/03/2015,A032364,Pinewood Lodge,91,490.00,0.00,PD,0570-0803,0803
North West Leicestershire District Council,31UH,ENOT,Street Management,Environment Transport,Repairs - Parts,Invoice,324.62 ,1304521,31/03/2015,A039355,Johnston Sweepers Ltd,61249711,389.54,64.92,PD,5848-0533,0533
North West Leicestershire District Council,31UH,PROPCL,Property Services,Property Commercial Lettings,Contract Cleaning,Invoice,276.14 ,1304501,31/03/2015,A003037,Coalville Cleaning Services,17828,331.37,55.23,PD,0037-0420,0420
North West Leicestershire District Council,31UH,HRAHM,Housing,HRA Housing Management,Legal & Professional Services,Invoice,300.00 ,1304522,31/03/2015,A032635,Sturgis Snow & Astill LLP,1864/4009,360.00,60.00,PD,5030-0800,0800
North West Leicestershire District Council,31UH,ESS,Street Management,Environment - Street Scene,Operational Equipment,Invoice,982.78 ,1304525,31/03/2015,A030776,Keltic,123120,"1,179.34",196.56,PD,0290-0710,0710
North West Leicestershire District Council,31UH,PROPCL,Property Services,Property Commercial Lettings,Contract Cleaning,Invoice,531.49 ,1304600,31/03/2015,A003037,Coalville Cleaning Services,17827,637.79,106.30,PD,0044-0420,0420
North West Leicestershire District Council,31UH,PROPFM,Property Services,Property Facilities Management,General Repairs,Invoice,487.56 ,1304601,31/03/2015,A033342,J Tomlinson Ltd,603088,585.07,97.51,PD,0210-0100,0100
North West Leicestershire District Council,31UH,HRAOPS,Housing,HRA Older Persons Service,Alarm System Telephones,Invoice,6400.00 ,1304560,31/03/2015,A001701,Tunstall Healthcare (UK) Limited,3IN/10259279,"7,680.00","1,280.00",PD,5050-0864,0864
North West Leicestershire District Council,31UH,HLC,Leisure Centres,Hermitage Leisure Centre,GP Referral,Invoice,270.00 ,1304979,31/03/2015,A028420,Hugglescote Community Centre,2,270.00,0.00,PD,5501-1143,1143
North West Leicestershire District Council,31UH,HRAPBS,Housing,HRA Performance & Business Support,Tenants Scrutiny Panel,Invoice,318.08 ,1303155,11/03/2015,A041709,I 4 Design,31,318.08,0.00,PD,5080-0939,0939
This report does not include any irrecoverable VAT,,,,,,,,,,,,,,,,
